Workbook

Sheet Cover Page
B3: ©Financial Model With DCF Model & IRR
C9: This is a discounted financial model which includes 3 Finanacial Statement Forecasting ,Sensitivity,Scenario Analysis,DCF Model & Internal Rate of Return(IRR)
N10: Strictly Confidential
C11: Model Prepared and Compiled By:
C13: © CPA Abdulrahman Juma Bakari:(Founder of Brave Lions Brain Consultancy)
C17: Notes
C18: This Model is prepared for Planing Purpose of the said Company…................................................................................. and focused on the company dynamics thus cannot
C19: be used for other reasons !!!.
C21: All contents is a Copyright matiral of :
C22: CPA JUMA ABDULRAHMAN BAKARI (Founder of Brave Lions Brain Consultancy)
C23: Emaill :bravelionsbrainconsultancy@gmail.com / jumabakari753@gmail.com | I23: Phone: | J23: ="+ 254 713883912" -> + 254 713883912

Sheet Source Data (hidden)
B2: Year 1
G3: Annual
A4: NURSERY | C4: Play Group | D4: Nursery 1 | E4: Nursery 2 | F4: Nursery 3 | G4: Totals
A5: Number Of Students | C5: 5 | D5: 5 | E5: 5 | F5: 5 | G5: =SUM(C5:F5) -> 20
A6: Tution Fee | B6: Per Term | C6: 76200 | D6: 98200 | E6: 99100 | F6: 115250 | R6: Year 1F | W6: Year 2F | AB6: Year 3F | AG6: Year 4F | AL6: Year 5F
B7: Annually | C7: =C5*C6*3 -> 1143000 | D7: =D5*D6*3 -> 1473000 | E7: 1486500 | F7: 1728750 | G7: =SUM(C7:F7) -> 5831250 | Q7: Nursery | R7: Junior | S7: Senior | T7: Consolidated | V7: Nursery | W7: Junior | X7: Senior | Y7: Consolidated | AA7: Nursery | AB7: Junior | AC7: Senior | AD7: Consolidated | AF7: Nursery | AG7: Junior | AH7: Senior | AI7: Consolidated | AK7: Nursery | AL7: Junior | AM7: Senior | AN7: Consolidated
A8: Registration Fee | C8: 50000 | D8: 50000 | E8: 50000 | F8: 50000 | Q8: =G7 -> 5831250 | R8: =I25 -> 17746500 | S8: =J43 -> 40254000 | T8: =SUM(Q8:S8) -> 63831750 | V8: =G64 -> 12245640 | W8: =I82 -> 37267650 | X8: =J100 -> 84533400 | Y8: =SUM(V8:X8) -> 134046690 | AA8: =G120 -> 19286910 | AB8: =I138 -> 58696560 | AC8: =J156 -> 133140105 | AD8: =SUM(AA8:AC8) -> 211123575 | AF8: =G175 -> 27001620 | AG8: =I193 -> 82175220 | AH8: =J211 -> 186396180 | AI8: =SUM(AF8:AH8) -> 295573020 | AK8: =G231 -> 35439604 | AL8: =I249 -> 107854907.8 | AM8: =J267 -> 244644941.2 | AN8: =SUM(AK8:AM8) -> 387939453
B9: All Students | C9: =C8*C5 -> 250000 | D9: =D8*D5 -> 250000 | E9: 250000 | F9: 250000 | G9: =SUM(C9:F9) -> 1000000 | Q9: =G9 -> 1000000 | R9: =I27 -> 1500000 | S9: =J45 -> 1750000 | T9: =SUM(Q9:S9) -> 4250000 | V9: =G66 -> 2000000 | W9: =I84 -> 3000000 | X9: =J102 -> 3500000 | Y9: =SUM(V9:X9) -> 8500000 | AA9: =G122 -> 3000000 | AB9: =I140 -> 4500000 | AC9: =J158 -> 5250000 | AD9: =SUM(AA9:AC9) -> 12750000 | AF9: =G177 -> 4000000 | AG9: =I195 -> 6000000 | AH9: =J213 -> 7000000 | AI9: =SUM(AF9:AH9) -> 17000000 | AK9: =G233 -> 5000000 | AL9: =I251 -> 7500000 | AM9: =J269 -> 8750000 | AN9: =SUM(AK9:AM9) -> 21250000
A10: Caution Fee-Refundable | C10: 70000 | D10: 70000 | E10: 70000 | F10: 70000 | Q10: =G11 -> 1400000 | R10: =I29 -> 2100000 | S10: =J47 -> 2450000 | T10: 5950000 | V10: =G68 -> 2800000 | W10: =I86 -> 4200000 | X10: =J104 -> 4900000 | Y10: 11900000 | AA10: =G124 -> 4200000 | AB10: =I142 -> 6300000 | AC10: =J160 -> 7350000 | AD10: 17850000 | AF10: =G179 -> 5600000 | AG10: =I197 -> 8400000 | AH10: =J215 -> 9800000 | AI10: =SUM(AF10:AH10) -> 23800000 | AK10: =G235 -> 7000000 | AL10: =I253 -> 10500000 | AM10: =J271 -> 12250000 | AN10: 29750000
B11: All Students | C11: =C10*C5 -> 350000 | D11: =D10*D5 -> 350000 | E11: 350000 | F11: 350000 | G11: =SUM(C11:F11) -> 1400000 | Q11: =G13 -> 3000000 | R11: =I31 -> 4500000 | S11: =J49 -> 5250000 | T11: 12750000 | V11: =G70 -> 6000000 | W11: =I88 -> 9000000 | X11: =J106 -> 10500000 | Y11: 25500000 | AA11: =G126 -> 9000000 | AB11: =I144 -> 13500000 | AC11: =J162 -> 15750000 | AD11: 38250000 | AF11: =G181 -> 12000000 | AG11: =I199 -> 18000000 | AH11: =J217 -> 21000000 | AI11: 51000000 | AK11: =G237 -> 15000000 | AL11: =I255 -> 22500000 | AM11: =J273 -> 26250000 | AN11: 63750000
A12: Capital Levy | C12: 150000 | D12: 150000 | E12: 150000 | F12: 150000 | Q12: =G15 -> 2520000 | R12: =I33 -> 4185000 | S12: =J51 -> 5355000 | T12: 12060000 | V12: =G72 -> 6525000 | W12: =I90 -> 8370000 | X12: =J108 -> 10710000 | Y12: 25605000 | AA12: =G128 -> 7560000 | AB12: =I146 -> 12555000 | AC12: =J164 -> 16065000 | AD12: 36180000 | AF12: =G183 -> 10080000 | AG12: =I201 -> 16740000 | AH12: =J219 -> 21420000 | AI12: 48240000 | AK12: =G239 -> 12600000 | AL12: =I257 -> 20925000 | AM12: =J275 -> 26775000 | AN12: 60300000
C13: =C12*C5 -> 750000 | D13: =D12*D5 -> 750000 | E13: 750000 | F13: 750000 | G13: =SUM(C13:F13) -> 3000000 | Q13: =G17 -> 1938000 | R13: =I35 -> 3343500 | S13: =J53 -> 4226250 | T13: 9507750 | V13: =G74 -> 3876000 | W13: =I92 -> 6687000 | X13: =J110 -> 8452500 | Y13: 19015500 | AA13: =G130 -> 5814000 | AB13: =I148 -> 10030500 | AC13: =J166 -> 12678750 | AD13: 28523250 | AF13: =G185 -> 7752000 | AG13: =I203 -> 13374000 | AH13: =J221 -> 16905000 | AI13: 38031000 | AK13: =G241 -> 9690000 | AL13: =I259 -> 16717500 | AM13: =J277 -> 21131250 | AN13: 47538750
A14: Transport Fee | B14: Per Term | C14: 42000 | D14: 42000 | E14: 42000 | F14: 42000 | Q14: =G19 -> 810000 | R14: =I37 -> 2052000 | S14: =J55 -> 3053250 | T14: 5915250 | V14: =G76 -> 1620000 | W14: =I94 -> 4104000 | X14: =J112 -> 6106500 | Y14: 11830500 | AA14: =G132 -> 2430000 | AB14: =I150 -> 6156000 | AC14: =J168 -> 9159750 | AD14: 17745750 | AF14: =G187 -> 3240000 | AG14: =I205 -> 8208000 | AH14: =J223 -> 12213000 | AI14: 23661000 | AK14: =G243 -> 4050000 | AL14: =I261 -> 10260000 | AM14: =J279 -> 15266250 | AN14: 29576250
B15: Annually | C15: =C14*C5*3 -> 630000 | D15: =D14*D5*3 -> 630000 | E15: 630000 | F15: 630000 | G15: =SUM(C15:F15) -> 2520000
A16: Lunch & Snacks Fee | B16: Per Term | C16: 32300 | D16: 32300 | E16: 32300 | F16: 32300
B17: Annually | C17: =C16*C5*3 -> 484500 | D17: =D16*D5*3 -> 484500 | E17: 484500 | F17: 484500 | G17: =SUM(C17:F17) -> 1938000
A18: Activity Fee | B18: Per Term | C18: 13500 | D18: 13500 | E18: 13500 | F18: 13500
B19: Annually | C19: =C18*C5*3 -> 202500 | D19: =D18*D5*3 -> 202500 | E19: 202500 | F19: 202500 | G19: =SUM(C19:F19) -> 810000
I21: Annual
A22: JUNIOR SCHOOL | C22: Year 1 | D22: Year 2 | E22: Year 3 | F22: Year 4 | G22: Year 5 | H22: Year 6 | I22: Totals
A23: Number Of Students | C23: 5 | D23: 5 | E23: 5 | F23: 5 | G23: 5 | H23: 5 | I23: =SUM(C23:H23) -> 30
A24: Tution Fee | B24: Per Term | C24: 135000 | D24: 168200 | E24: 215300 | F24: 215300 | G24: 215300 | H24: 234000
B25: Annually | C25: =C23*C24*3 -> 2025000 | D25: =D23*D24*3 -> 2523000 | E25: 3229500 | F25: 3229500 | G25: 3229500 | H25: 3510000 | I25: =SUM(C25:H25) -> 17746500
A26: Registration Fee | C26: 50000 | D26: 50000 | E26: 50000 | F26: 50000 | G26: 50000 | H26: 50000
B27: All Students | C27: =C26*C23 -> 250000 | D27: =D26*D23 -> 250000 | E27: 250000 | F27: 250000 | G27: 250000 | H27: =H26*H23 -> 250000 | I27: =SUM(C27:H27) -> 1500000
A28: Caution Fee-Refundable | C28: 70000 | D28: 70000 | E28: 70000 | F28: 70000 | G28: 70000 | H28: 70000
B29: All Students | C29: =C28*C23 -> 350000 | D29: =D28*D23 -> 350000 | E29: 350000 | F29: 350000 | G29: 350000 | H29: 350000 | I29: =SUM(C29:H29) -> 2100000
A30: Capital Levy | C30: 150000 | D30: 150000 | E30: 150000 | F30: 150000 | G30: 150000 | H30: 150000
C31: =C30*C23 -> 750000 | D31: =D30*D23 -> 750000 | E31: 750000 | F31: 750000 | G31: 750000 | H31: 750000 | I31: =SUM(C31:H31) -> 4500000
A32: Transport Fee | B32: Per Term | C32: 46500 | D32: 46500 | E32: 46500 | F32: 46500 | G32: 46500 | H32: 46500
B33: Annually | C33: =C32*C23*3 -> 697500 | D33: =D32*D23*3 -> 697500 | E33: 697500 | F33: 697500 | G33: 697500 | H33: 697500 | I33: =SUM(C33:H33) -> 4185000
A34: Lunch & Snacks Fee | B34: Per Term | C34: 37150 | D34: 37150 | E34: 37150 | F34: 37150 | G34: 37150 | H34: 37150
B35: Annually | C35: =C34*C23*3 -> 557250 | D35: =D34*D23*3 -> 557250 | E35: 557250 | F35: 557250 | G35: 557250 | H35: 557250 | I35: =SUM(C35:H35) -> 3343500
A36: Activity Fee | B36: Per Term | C36: 21450 | D36: 21450 | E36: 21450 | F36: 24150 | G36: 24150 | H36: 24150
B37: Annually | C37: =C36*C23*3 -> 321750 | D37: =D36*D23*3 -> 321750 | E37: 321750 | F37: 362250 | G37: 362250 | H37: 362250 | I37: =SUM(C37:H37) -> 2052000
J39: Annual
A40: SENIOR SCHOOL | C40: Year 7 | D40: Year 8 | E40: Year 9 | F40: Year 10 | G40: Year 11 | H40: Year 12 | I40: Year 13 | J40: Totals
A41: Number Of Students | C41: 5 | D41: 5 | E41: 5 | F41: 5 | G41: 5 | H41: 5 | I41: 5 | J41: =SUM(C41:I41) -> 35
A42: Tution Fee | B42: Per Term | C42: 268100 | D42: 318100 | E42: 318100 | F42: 318100 | G42: 436600 | H42: 512300 | I42: 512300
B43: Annually | C43: =C41*C42*3 -> 4021500 | D43: =D41*D42*3 -> 4771500 | E43: 4771500 | F43: 4771500 | G43: 6549000 | H43: 7684500 | I43: 7684500 | J43: =SUM(C43:I43) -> 40254000
A44: Registration Fee | C44: 50000 | D44: 50000 | E44: 50000 | F44: 50000 | G44: 50000 | H44: 50000 | I44: 50000
B45: All Students | C45: =C44*C41 -> 250000 | D45: =D44*D41 -> 250000 | E45: 250000 | F45: 250000 | G45: 250000 | H45: 250000 | I45: 250000 | J45: =SUM(C45:I45) -> 1750000
A46: Caution Fee-Refundable | C46: 70000 | D46: 70000 | E46: 70000 | F46: 70000 | G46: 70000 | H46: 70000 | I46: 70000
B47: All Students | C47: =C46*C41 -> 350000 | D47: =D46*D41 -> 350000 | E47: 350000 | F47: 350000 | G47: 350000 | H47: 350000 | I47: 350000 | J47: =SUM(C47:I47) -> 2450000
A48: Capital Levy | C48: 150000 | D48: 150000 | E48: 150000 | F48: 150000 | G48: 150000 | H48: 150000 | I48: 150000
C49: =C48*C41 -> 750000 | D49: =D48*D41 -> 750000 | E49: 750000 | F49: 750000 | G49: 750000 | H49: 750000 | I49: 750000 | J49: =SUM(C49:I49) -> 5250000
A50: Transport Fee | B50: Per Term | C50: 51000 | D50: 51000 | E50: 51000 | F50: 51000 | G50: 51000 | H50: 51000 | I50: 51000
B51: Annually | C51: =C50*C41*3 -> 765000 | D51: =D50*D41*3 -> 765000 | E51: 765000 | F51: 765000 | G51: 765000 | H51: 765000 | I51: 765000 | J51: =SUM(C51:I51) -> 5355000
A52: Lunch & Snacks Fee | B52: Per Term | C52: 40250 | D52: 40250 | E52: 40250 | F52: 40250 | G52: 40250 | H52: 40250 | I52: 40250
B53: Annually | C53: =C52*C41*3 -> 603750 | D53: =D52*D41*3 -> 603750 | E53: 603750 | F53: 603750 | G53: 603750 | H53: 603750 | I53: 603750 | J53: =SUM(C53:I53) -> 4226250
A54: Activity Fee | B54: Per Term | C54: 27600 | D54: 27600 | E54: 27600 | F54: 27600 | G54: 31050 | H54: 31050 | I54: 31050
B55: Annually | C55: =C54*C41*3 -> 414000 | D55: =D54*D41*3 -> 414000 | E55: 414000 | F55: 414000 | G55: 465750 | H55: 465750 | I55: 465750 | J55: =SUM(C55:I55) -> 3053250
B59: Year 2
G60: Annual
A61: NURSERY | C61: Play Group | D61: Nursery 1 | E61: Nursery 2 | F61: Nursery 3 | G61: Totals
A62: Number Of Students | C62: 10 | D62: 10 | E62: 10 | F62: 10 | G62: =SUM(C62:F62) -> 40
A63: Tution Fee | B63: Per Term | C63: 80010 | D63: 103110 | E63: 104055 | F63: 121013
B64: Annually | C64: =C62*C63*3 -> 2400300 | D64: =D62*D63*3 -> 3093300 | E64: =E62*E63*3 -> 3121650 | F64: =F62*F63*3 -> 3630390 | G64: =SUM(C64:F64) -> 12245640
A65: Registration Fee | C65: 50000 | D65: 50000 | E65: 50000 | F65: 50000
B66: All Students | C66: =C65*C62 -> 500000 | D66: =D65*D62 -> 500000 | E66: =E65*E62 -> 500000 | F66: =F65*F62 -> 500000 | G66: =SUM(C66:F66) -> 2000000
A67: Caution Fee-Refundable | C67: 70000 | D67: 70000 | E67: 70000 | F67: 70000
B68: All Students | C68: =C67*C62 -> 700000 | D68: =D67*D62 -> 700000 | E68: =E67*E62 -> 700000 | F68: =F67*F62 -> 700000 | G68: =SUM(C68:F68) -> 2800000
A69: Capital Levy | C69: 150000 | D69: 150000 | E69: 150000 | F69: 150000
C70: =C69*C62 -> 1500000 | D70: =D69*D62 -> 1500000 | E70: =E69*E62 -> 1500000 | F70: =F69*F62 -> 1500000 | G70: =SUM(C70:F70) -> 6000000
A71: Transport Fee | B71: Per Term | C71: 54375 | D71: 54375 | E71: 54375 | F71: 54375
B72: Annually | C72: =C71*C62*3 -> 1631250 | D72: =D71*D62*3 -> 1631250 | E72: =E71*E62*3 -> 1631250 | F72: =F71*F62*3 -> 1631250 | G72: =SUM(C72:F72) -> 6525000
A73: Lunch & Snacks Fee | B73: Per Term | C73: 32300 | D73: 32300 | E73: 32300 | F73: 32300
B74: Annually | C74: =C73*C62*3 -> 969000 | D74: =D73*D62*3 -> 969000 | E74: =E73*E62*3 -> 969000 | F74: =F73*F62*3 -> 969000 | G74: =SUM(C74:F74) -> 3876000
A75: Activity Fee | B75: Per Term | C75: 13500 | D75: 13500 | E75: 13500 | F75: 13500
B76: Annually | C76: =C75*C62*3 -> 405000 | D76: =D75*D62*3 -> 405000 | E76: =E75*E62*3 -> 405000 | F76: =F75*F62*3 -> 405000 | G76: =SUM(C76:F76) -> 1620000
I78: Annual
A79: JUNIOR SCHOOL | C79: Year 1 | D79: Year 2 | E79: Year 3 | F79: Year 4 | G79: Year 5 | H79: Year 6 | I79: Totals
A80: Number Of Students | C80: 10 | D80: 10 | E80: 10 | F80: 10 | G80: 10 | H80: 10 | I80: =SUM(C80:H80) -> 60
A81: Tution Fee | B81: Per Term | C81: 141750 | D81: 176610 | E81: 226065 | F81: 226065 | G81: 226065 | H81: 245700
B82: Annually | C82: =C80*C81*3 -> 4252500 | D82: =D80*D81*3 -> 5298300 | E82: =E80*E81*3 -> 6781950 | F82: =F80*F81*3 -> 6781950 | G82: =G80*G81*3 -> 6781950 | H82: =H80*H81*3 -> 7371000 | I82: =SUM(C82:H82) -> 37267650
A83: Registration Fee | C83: 50000 | D83: 50000 | E83: 50000 | F83: 50000 | G83: 50000 | H83: 50000
B84: All Students | C84: =C83*C80 -> 500000 | D84: =D83*D80 -> 500000 | E84: =E83*E80 -> 500000 | F84: =F83*F80 -> 500000 | G84: =G83*G80 -> 500000 | H84: =H83*H80 -> 500000 | I84: =SUM(C84:H84) -> 3000000
A85: Caution Fee-Refundable | C85: 70000 | D85: 70000 | E85: 70000 | F85: 70000 | G85: 70000 | H85: 70000
B86: All Students | C86: =C85*C80 -> 700000 | D86: =D85*D80 -> 700000 | E86: =E85*E80 -> 700000 | F86: =F85*F80 -> 700000 | G86: =G85*G80 -> 700000 | H86: =H85*H80 -> 700000 | I86: =SUM(C86:H86) -> 4200000
A87: Capital Levy | C87: 150000 | D87: 150000 | E87: 150000 | F87: 150000 | G87: 150000 | H87: 150000
C88: =C87*C80 -> 1500000 | D88: =D87*D80 -> 1500000 | E88: =E87*E80 -> 1500000 | F88: =F87*F80 -> 1500000 | G88: =G87*G80 -> 1500000 | H88: =H87*H80 -> 1500000 | I88: =SUM(C88:H88) -> 9000000
A89: Transport Fee | B89: Per Term | C89: 46500 | D89: 46500 | E89: 46500 | F89: 46500 | G89: 46500 | H89: 46500
B90: Annually | C90: =C89*C80*3 -> 1395000 | D90: =D89*D80*3 -> 1395000 | E90: =E89*E80*3 -> 1395000 | F90: =F89*F80*3 -> 1395000 | G90: =G89*G80*3 -> 1395000 | H90: =H89*H80*3 -> 1395000 | I90: =SUM(C90:H90) -> 8370000
A91: Lunch & Snacks Fee | B91: Per Term | C91: 37150 | D91: 37150 | E91: 37150 | F91: 37150 | G91: 37150 | H91: 37150
B92: Annually | C92: =C91*C80*3 -> 1114500 | D92: =D91*D80*3 -> 1114500 | E92: =E91*E80*3 -> 1114500 | F92: =F91*F80*3 -> 1114500 | G92: =G91*G80*3 -> 1114500 | H92: =H91*H80*3 -> 1114500 | I92: =SUM(C92:H92) -> 6687000
A93: Activity Fee | B93: Per Term | C93: 21450 | D93: 21450 | E93: 21450 | F93: 24150 | G93: 24150 | H93: 24150
B94: Annually | C94: =C93*C80*3 -> 643500 | D94: =D93*D80*3 -> 643500 | E94: =E93*E80*3 -> 643500 | F94: =F93*F80*3 -> 724500 | G94: =G93*G80*3 -> 724500 | H94: =H93*H80*3 -> 724500 | I94: =SUM(C94:H94) -> 4104000
J96: Annual
A97: SENIOR SCHOOL | C97: Year 7 | D97: Year 8 | E97: Year 9 | F97: Year 10 | G97: Year 11 | H97: Year 12 | I97: Year 13 | J97: Totals
A98: Number Of Students | C98: 10 | D98: 10 | E98: 10 | F98: 10 | G98: 10 | H98: 10 | I98: 10 | J98: =SUM(C98:I98) -> 70
A99: Tution Fee | B99: Per Term | C99: 281505 | D99: 334005 | E99: 334005 | F99: 334005 | G99: 458430 | H99: 537915 | I99: 537915
B100: Annually | C100: =C98*C99*3 -> 8445150 | D100: =D98*D99*3 -> 10020150 | E100: =E98*E99*3 -> 10020150 | F100: =F98*F99*3 -> 10020150 | G100: =G98*G99*3 -> 13752900 | H100: =H98*H99*3 -> 16137450 | I100: =I98*I99*3 -> 16137450 | J100: =SUM(C100:I100) -> 84533400
A101: Registration Fee | C101: 50000 | D101: 50000 | E101: 50000 | F101: 50000 | G101: 50000 | H101: 50000 | I101: 50000
B102: All Students | C102: =C101*C98 -> 500000 | D102: =D101*D98 -> 500000 | E102: =E101*E98 -> 500000 | F102: =F101*F98 -> 500000 | G102: =G101*G98 -> 500000 | H102: =H101*H98 -> 500000 | I102: =I101*I98 -> 500000 | J102: =SUM(C102:I102) -> 3500000
A103: Caution Fee-Refundable | C103: 70000 | D103: 70000 | E103: 70000 | F103: 70000 | G103: 70000 | H103: 70000 | I103: 70000
B104: All Students | C104: =C103*C98 -> 700000 | D104: =D103*D98 -> 700000 | E104: =E103*E98 -> 700000 | F104: =F103*F98 -> 700000 | G104: =G103*G98 -> 700000 | H104: =H103*H98 -> 700000 | I104: =I103*I98 -> 700000 | J104: =SUM(C104:I104) -> 4900000
A105: Capital Levy | C105: 150000 | D105: 150000 | E105: 150000 | F105: 150000 | G105: 150000 | H105: 150000 | I105: 150000
C106: =C105*C98 -> 1500000 | D106: =D105*D98 -> 1500000 | E106: =E105*E98 -> 1500000 | F106: =F105*F98 -> 1500000 | G106: =G105*G98 -> 1500000 | H106: =H105*H98 -> 1500000 | I106: =I105*I98 -> 1500000 | J106: =SUM(C106:I106) -> 10500000
A107: Transport Fee | B107: Per Term | C107: 51000 | D107: 51000 | E107: 51000 | F107: 51000 | G107: 51000 | H107: 51000 | I107: 51000
B108: Annually | C108: =C107*C98*3 -> 1530000 | D108: =D107*D98*3 -> 1530000 | E108: =E107*E98*3 -> 1530000 | F108: =F107*F98*3 -> 1530000 | G108: =G107*G98*3 -> 1530000 | H108: =H107*H98*3 -> 1530000 | I108: =I107*I98*3 -> 1530000 | J108: =SUM(C108:I108) -> 10710000
A109: Lunch & Snacks Fee | B109: Per Term | C109: 40250 | D109: 40250 | E109: 40250 | F109: 40250 | G109: 40250 | H109: 40250 | I109: 40250
B110: Annually | C110: =C109*C98*3 -> 1207500 | D110: =D109*D98*3 -> 1207500 | E110: =E109*E98*3 -> 1207500 | F110: =F109*F98*3 -> 1207500 | G110: =G109*G98*3 -> 1207500 | H110: =H109*H98*3 -> 1207500 | I110: =I109*I98*3 -> 1207500 | J110: =SUM(C110:I110) -> 8452500
A111: Activity Fee | B111: Per Term | C111: 27600 | D111: 27600 | E111: 27600 | F111: 27600 | G111: 31050 | H111: 31050 | I111: 31050
B112: Annually | C112: =C111*C98*3 -> 828000 | D112: =D111*D98*3 -> 828000 | E112: =E111*E98*3 -> 828000 | F112: =F111*F98*3 -> 828000 | G112: =G111*G98*3 -> 931500 | H112: =H111*H98*3 -> 931500 | I112: =I111*I98*3 -> 931500 | J112: =SUM(C112:I112) -> 6106500
B115: Year 3
G116: Annual
A117: NURSERY | C117: Play Group | D117: Nursery 1 | E117: Nursery 2 | F117: Nursery 3 | G117: Totals
A118: Number Of Students | C118: 15 | D118: 15 | E118: 15 | F118: 15 | G118: =SUM(C118:F118) -> 60
A119: Tution Fee | B119: Per Term | C119: 84011 | D119: 108266 | E119: 109258 | F119: 127063
B120: Annually | C120: =C118*C119*3 -> 3780495 | D120: =D118*D119*3 -> 4871970 | E120: =E118*E119*3 -> 4916610 | F120: =F118*F119*3 -> 5717835 | G120: =SUM(C120:F120) -> 19286910
A121: Registration Fee | C121: 50000 | D121: 50000 | E121: 50000 | F121: 50000
B122: All Students | C122: =C121*C118 -> 750000 | D122: =D121*D118 -> 750000 | E122: =E121*E118 -> 750000 | F122: =F121*F118 -> 750000 | G122: =SUM(C122:F122) -> 3000000
A123: Caution Fee-Refundable | C123: 70000 | D123: 70000 | E123: 70000 | F123: 70000
B124: All Students | C124: =C123*C118 -> 1050000 | D124: =D123*D118 -> 1050000 | E124: =E123*E118 -> 1050000 | F124: =F123*F118 -> 1050000 | G124: =SUM(C124:F124) -> 4200000
A125: Capital Levy | C125: 150000 | D125: 150000 | E125: 150000 | F125: 150000
C126: =C125*C118 -> 2250000 | D126: =D125*D118 -> 2250000 | E126: =E125*E118 -> 2250000 | F126: =F125*F118 -> 2250000 | G126: =SUM(C126:F126) -> 9000000
A127: Transport Fee | B127: Per Term | C127: 42000 | D127: 42000 | E127: 42000 | F127: 42000
B128: Annually | C128: =C127*C118*3 -> 1890000 | D128: =D127*D118*3 -> 1890000 | E128: =E127*E118*3 -> 1890000 | F128: =F127*F118*3 -> 1890000 | G128: =SUM(C128:F128) -> 7560000
A129: Lunch & Snacks Fee | B129: Per Term | C129: 32300 | D129: 32300 | E129: 32300 | F129: 32300
B130: Annually | C130: =C129*C118*3 -> 1453500 | D130: =D129*D118*3 -> 1453500 | E130: =E129*E118*3 -> 1453500 | F130: =F129*F118*3 -> 1453500 | G130: =SUM(C130:F130) -> 5814000
A131: Activity Fee | B131: Per Term | C131: 13500 | D131: 13500 | E131: 13500 | F131: 13500
B132: Annually | C132: =C131*C118*3 -> 607500 | D132: =D131*D118*3 -> 607500 | E132: =E131*E118*3 -> 607500 | F132: =F131*F118*3 -> 607500 | G132: =SUM(C132:F132) -> 2430000
I134: Annual
A135: JUNIOR SCHOOL | C135: Year 1 | D135: Year 2 | E135: Year 3 | F135: Year 4 | G135: Year 5 | H135: Year 6 | I135: Totals
A136: Number Of Students | C136: 15 | D136: 15 | E136: 15 | F136: 15 | G136: 15 | H136: 15 | I136: =SUM(C136:H136) -> 90
A137: Tution Fee | B137: Per Term | C137: 148838 | D137: 185441 | E137: 237368 | F137: 237368 | G137: 237368 | H137: 257985
B138: Annually | C138: =C136*C137*3 -> 6697710 | D138: =D136*D137*3 -> 8344845 | E138: =E136*E137*3 -> 10681560 | F138: =F136*F137*3 -> 10681560 | G138: =G136*G137*3 -> 10681560 | H138: =H136*H137*3 -> 11609325 | I138: =SUM(C138:H138) -> 58696560
A139: Registration Fee | C139: 50000 | D139: 50000 | E139: 50000 | F139: 50000 | G139: 50000 | H139: 50000
B140: All Students | C140: =C139*C136 -> 750000 | D140: =D139*D136 -> 750000 | E140: =E139*E136 -> 750000 | F140: =F139*F136 -> 750000 | G140: =G139*G136 -> 750000 | H140: =H139*H136 -> 750000 | I140: =SUM(C140:H140) -> 4500000
A141: Caution Fee-Refundable | C141: 70000 | D141: 70000 | E141: 70000 | F141: 70000 | G141: 70000 | H141: 70000
B142: All Students | C142: =C141*C136 -> 1050000 | D142: =D141*D136 -> 1050000 | E142: =E141*E136 -> 1050000 | F142: =F141*F136 -> 1050000 | G142: =G141*G136 -> 1050000 | H142: =H141*H136 -> 1050000 | I142: =SUM(C142:H142) -> 6300000
A143: Capital Levy | C143: 150000 | D143: 150000 | E143: 150000 | F143: 150000 | G143: 150000 | H143: 150000
C144: =C143*C136 -> 2250000 | D144: =D143*D136 -> 2250000 | E144: =E143*E136 -> 2250000 | F144: =F143*F136 -> 2250000 | G144: =G143*G136 -> 2250000 | H144: =H143*H136 -> 2250000 | I144: =SUM(C144:H144) -> 13500000
A145: Transport Fee | B145: Per Term | C145: 46500 | D145: 46500 | E145: 46500 | F145: 46500 | G145: 46500 | H145: 46500
B146: Annually | C146: =C145*C136*3 -> 2092500 | D146: =D145*D136*3 -> 2092500 | E146: =E145*E136*3 -> 2092500 | F146: =F145*F136*3 -> 2092500 | G146: =G145*G136*3 -> 2092500 | H146: =H145*H136*3 -> 2092500 | I146: =SUM(C146:H146) -> 12555000
A147: Lunch & Snacks Fee | B147: Per Term | C147: 37150 | D147: 37150 | E147: 37150 | F147: 37150 | G147: 37150 | H147: 37150
B148: Annually | C148: =C147*C136*3 -> 1671750 | D148: =D147*D136*3 -> 1671750 | E148: =E147*E136*3 -> 1671750 | F148: =F147*F136*3 -> 1671750 | G148: =G147*G136*3 -> 1671750 | H148: =H147*H136*3 -> 1671750 | I148: =SUM(C148:H148) -> 10030500
A149: Activity Fee | B149: Per Term | C149: 21450 | D149: 21450 | E149: 21450 | F149: 24150 | G149: 24150 | H149: 24150
B150: Annually | C150: =C149*C136*3 -> 965250 | D150: =D149*D136*3 -> 965250 | E150: =E149*E136*3 -> 965250 | F150: =F149*F136*3 -> 1086750 | G150: =G149*G136*3 -> 1086750 | H150: =H149*H136*3 -> 1086750 | I150: =SUM(C150:H150) -> 6156000
J152: Annual
A153: SENIOR SCHOOL | C153: Year 7 | D153: Year 8 | E153: Year 9 | F153: Year 10 | G153: Year 11 | H153: Year 12 | I153: Year 13 | J153: Totals
A154: Number Of Students | C154: 15 | D154: 15 | E154: 15 | F154: 15 | G154: 15 | H154: 15 | I154: 15 | J154: =SUM(C154:I154) -> 105
A155: Tution Fee | B155: Per Term | C155: 295580 | D155: 350705 | E155: 350705 | F155: 350705 | G155: 481352 | H155: 564811 | I155: 564811
B156: Annually | C156: =C154*C155*3 -> 13301100 | D156: =D154*D155*3 -> 15781725 | E156: =E154*E155*3 -> 15781725 | F156: =F154*F155*3 -> 15781725 | G156: =G154*G155*3 -> 21660840 | H156: =H154*H155*3 -> 25416495 | I156: =I154*I155*3 -> 25416495 | J156: =SUM(C156:I156) -> 133140105
A157: Registration Fee | C157: 50000 | D157: 50000 | E157: 50000 | F157: 50000 | G157: 50000 | H157: 50000 | I157: 50000
B158: All Students | C158: =C157*C154 -> 750000 | D158: =D157*D154 -> 750000 | E158: =E157*E154 -> 750000 | F158: =F157*F154 -> 750000 | G158: =G157*G154 -> 750000 | H158: =H157*H154 -> 750000 | I158: =I157*I154 -> 750000 | J158: =SUM(C158:I158) -> 5250000
A159: Caution Fee-Refundable | C159: 70000 | D159: 70000 | E159: 70000 | F159: 70000 | G159: 70000 | H159: 70000 | I159: 70000
B160: All Students | C160: =C159*C154 -> 1050000 | D160: =D159*D154 -> 1050000 | E160: =E159*E154 -> 1050000 | F160: =F159*F154 -> 1050000 | G160: =G159*G154 -> 1050000 | H160: =H159*H154 -> 1050000 | I160: =I159*I154 -> 1050000 | J160: =SUM(C160:I160) -> 7350000
A161: Capital Levy | C161: 150000 | D161: 150000 | E161: 150000 | F161: 150000 | G161: 150000 | H161: 150000 | I161: 150000
C162: =C161*C154 -> 2250000 | D162: =D161*D154 -> 2250000 | E162: =E161*E154 -> 2250000 | F162: =F161*F154 -> 2250000 | G162: =G161*G154 -> 2250000 | H162: =H161*H154 -> 2250000 | I162: =I161*I154 -> 2250000 | J162: =SUM(C162:I162) -> 15750000
A163: Transport Fee | B163: Per Term | C163: 51000 | D163: 51000 | E163: 51000 | F163: 51000 | G163: 51000 | H163: 51000 | I163: 51000
B164: Annually | C164: =C163*C154*3 -> 2295000 | D164: =D163*D154*3 -> 2295000 | E164: =E163*E154*3 -> 2295000 | F164: =F163*F154*3 -> 2295000 | G164: =G163*G154*3 -> 2295000 | H164: =H163*H154*3 -> 2295000 | I164: =I163*I154*3 -> 2295000 | J164: =SUM(C164:I164) -> 16065000
A165: Lunch & Snacks Fee | B165: Per Term | C165: 40250 | D165: 40250 | E165: 40250 | F165: 40250 | G165: 40250 | H165: 40250 | I165: 40250
B166: Annually | C166: =C165*C154*3 -> 1811250 | D166: =D165*D154*3 -> 1811250 | E166: =E165*E154*3 -> 1811250 | F166: =F165*F154*3 -> 1811250 | G166: =G165*G154*3 -> 1811250 | H166: =H165*H154*3 -> 1811250 | I166: =I165*I154*3 -> 1811250 | J166: =SUM(C166:I166) -> 12678750
A167: Activity Fee | B167: Per Term | C167: 27600 | D167: 27600 | E167: 27600 | F167: 27600 | G167: 31050 | H167: 31050 | I167: 31050
B168: Annually | C168: =C167*C154*3 -> 1242000 | D168: =D167*D154*3 -> 1242000 | E168: =E167*E154*3 -> 1242000 | F168: =F167*F154*3 -> 1242000 | G168: =G167*G154*3 -> 1397250 | H168: =H167*H154*3 -> 1397250 | I168: =I167*I154*3 -> 1397250 | J168: =SUM(C168:I168) -> 9159750
B170: Year 4
G171: Annual
A172: NURSERY | C172: Play Group | D172: Nursery 1 | E172: Nursery 2 | F172: Nursery 3 | G172: Totals
A173: Number Of Students | C173: 20 | D173: 20 | E173: 20 | F173: 20 | G173: =SUM(C173:F173) -> 80
A174: Tution Fee | B174: Per Term | C174: 88211 | D174: 113679 | E174: 114721 | F174: 133416
B175: Annually | C175: =C173*C174*3 -> 5292660 | D175: =D173*D174*3 -> 6820740 | E175: =E173*E174*3 -> 6883260 | F175: =F173*F174*3 -> 8004960 | G175: =SUM(C175:F175) -> 27001620
A176: Registration Fee | C176: 50000 | D176: 50000 | E176: 50000 | F176: 50000
B177: All Students | C177: =C176*C173 -> 1000000 | D177: =D176*D173 -> 1000000 | E177: =E176*E173 -> 1000000 | F177: =F176*F173 -> 1000000 | G177: =SUM(C177:F177) -> 4000000
A178: Caution Fee-Refundable | C178: 70000 | D178: 70000 | E178: 70000 | F178: 70000
B179: All Students | C179: =C178*C173 -> 1400000 | D179: =D178*D173 -> 1400000 | E179: =E178*E173 -> 1400000 | F179: =F178*F173 -> 1400000 | G179: =SUM(C179:F179) -> 5600000
A180: Capital Levy | C180: 150000 | D180: 150000 | E180: 150000 | F180: 150000
C181: =C180*C173 -> 3000000 | D181: =D180*D173 -> 3000000 | E181: =E180*E173 -> 3000000 | F181: =F180*F173 -> 3000000 | G181: =SUM(C181:F181) -> 12000000
A182: Transport Fee | B182: Per Term | C182: 42000 | D182: 42000 | E182: 42000 | F182: 42000
B183: Annually | C183: =C182*C173*3 -> 2520000 | D183: =D182*D173*3 -> 2520000 | E183: =E182*E173*3 -> 2520000 | F183: =F182*F173*3 -> 2520000 | G183: =SUM(C183:F183) -> 10080000
A184: Lunch & Snacks Fee | B184: Per Term | C184: 32300 | D184: 32300 | E184: 32300 | F184: 32300
B185: Annually | C185: =C184*C173*3 -> 1938000 | D185: =D184*D173*3 -> 1938000 | E185: =E184*E173*3 -> 1938000 | F185: =F184*F173*3 -> 1938000 | G185: =SUM(C185:F185) -> 7752000
A186: Activity Fee | B186: Per Term | C186: 13500 | D186: 13500 | E186: 13500 | F186: 13500
B187: Annually | C187: =C186*C173*3 -> 810000 | D187: =D186*D173*3 -> 810000 | E187: =E186*E173*3 -> 810000 | F187: =F186*F173*3 -> 810000 | G187: =SUM(C187:F187) -> 3240000
I189: Annual
A190: JUNIOR SCHOOL | C190: Year 1 | D190: Year 2 | E190: Year 3 | F190: Year 4 | G190: Year 5 | H190: Year 6 | I190: Totals
A191: Number Of Students | C191: 20 | D191: 20 | E191: 20 | F191: 20 | G191: 20 | H191: 20 | I191: =SUM(C191:H191) -> 120
A192: Tution Fee | B192: Per Term | C192: 156279 | D192: 194713 | E192: 249237 | F192: 249237 | G192: 249237 | H192: 270884
B193: Annually | C193: =C191*C192*3 -> 9376740 | D193: =D191*D192*3 -> 11682780 | E193: =E191*E192*3 -> 14954220 | F193: =F191*F192*3 -> 14954220 | G193: =G191*G192*3 -> 14954220 | H193: =H191*H192*3 -> 16253040 | I193: =SUM(C193:H193) -> 82175220
A194: Registration Fee | C194: 50000 | D194: 50000 | E194: 50000 | F194: 50000 | G194: 50000 | H194: 50000
B195: All Students | C195: =C194*C191 -> 1000000 | D195: =D194*D191 -> 1000000 | E195: =E194*E191 -> 1000000 | F195: =F194*F191 -> 1000000 | G195: =G194*G191 -> 1000000 | H195: =H194*H191 -> 1000000 | I195: =SUM(C195:H195) -> 6000000
A196: Caution Fee-Refundable | C196: 70000 | D196: 70000 | E196: 70000 | F196: 70000 | G196: 70000 | H196: 70000
B197: All Students | C197: =C196*C191 -> 1400000 | D197: =D196*D191 -> 1400000 | E197: =E196*E191 -> 1400000 | F197: =F196*F191 -> 1400000 | G197: =G196*G191 -> 1400000 | H197: =H196*H191 -> 1400000 | I197: =SUM(C197:H197) -> 8400000
A198: Capital Levy | C198: 150000 | D198: 150000 | E198: 150000 | F198: 150000 | G198: 150000 | H198: 150000
C199: =C198*C191 -> 3000000 | D199: =D198*D191 -> 3000000 | E199: =E198*E191 -> 3000000 | F199: =F198*F191 -> 3000000 | G199: =G198*G191 -> 3000000 | H199: =H198*H191 -> 3000000 | I199: =SUM(C199:H199) -> 18000000
A200: Transport Fee | B200: Per Term | C200: 46500 | D200: 46500 | E200: 46500 | F200: 46500 | G200: 46500 | H200: 46500
B201: Annually | C201: =C200*C191*3 -> 2790000 | D201: =D200*D191*3 -> 2790000 | E201: =E200*E191*3 -> 2790000 | F201: =F200*F191*3 -> 2790000 | G201: =G200*G191*3 -> 2790000 | H201: =H200*H191*3 -> 2790000 | I201: =SUM(C201:H201) -> 16740000
A202: Lunch & Snacks Fee | B202: Per Term | C202: 37150 | D202: 37150 | E202: 37150 | F202: 37150 | G202: 37150 | H202: 37150
B203: Annually | C203: =C202*C191*3 -> 2229000 | D203: =D202*D191*3 -> 2229000 | E203: =E202*E191*3 -> 2229000 | F203: =F202*F191*3 -> 2229000 | G203: =G202*G191*3 -> 2229000 | H203: =H202*H191*3 -> 2229000 | I203: =SUM(C203:H203) -> 13374000
A204: Activity Fee | B204: Per Term | C204: 21450 | D204: 21450 | E204: 21450 | F204: 24150 | G204: 24150 | H204: 24150
B205: Annually | C205: =C204*C191*3 -> 1287000 | D205: =D204*D191*3 -> 1287000 | E205: =E204*E191*3 -> 1287000 | F205: =F204*F191*3 -> 1449000 | G205: =G204*G191*3 -> 1449000 | H205: =H204*H191*3 -> 1449000 | I205: =SUM(C205:H205) -> 8208000
J207: Annual
A208: SENIOR SCHOOL | C208: Year 7 | D208: Year 8 | E208: Year 9 | F208: Year 10 | G208: Year 11 | H208: Year 12 | I208: Year 13 | J208: Totals
A209: Number Of Students | C209: 20 | D209: 20 | E209: 20 | F209: 20 | G209: 20 | H209: 20 | I209: 20 | J209: =SUM(C209:I209) -> 140
A210: Tution Fee | B210: Per Term | C210: 310359 | D210: 368241 | E210: 368241 | F210: 368241 | G210: 505419 | H210: 593051 | I210: 593051
B211: Annually | C211: =C209*C210*3 -> 18621540 | D211: =D209*D210*3 -> 22094460 | E211: =E209*E210*3 -> 22094460 | F211: =F209*F210*3 -> 22094460 | G211: =G209*G210*3 -> 30325140 | H211: =H209*H210*3 -> 35583060 | I211: =I209*I210*3 -> 35583060 | J211: =SUM(C211:I211) -> 186396180
A212: Registration Fee | C212: 50000 | D212: 50000 | E212: 50000 | F212: 50000 | G212: 50000 | H212: 50000 | I212: 50000
B213: All Students | C213: =C212*C209 -> 1000000 | D213: =D212*D209 -> 1000000 | E213: =E212*E209 -> 1000000 | F213: =F212*F209 -> 1000000 | G213: =G212*G209 -> 1000000 | H213: =H212*H209 -> 1000000 | I213: =I212*I209 -> 1000000 | J213: =SUM(C213:I213) -> 7000000
A214: Caution Fee-Refundable | C214: 70000 | D214: 70000 | E214: 70000 | F214: 70000 | G214: 70000 | H214: 70000 | I214: 70000
B215: All Students | C215: =C214*C209 -> 1400000 | D215: =D214*D209 -> 1400000 | E215: =E214*E209 -> 1400000 | F215: =F214*F209 -> 1400000 | G215: =G214*G209 -> 1400000 | H215: =H214*H209 -> 1400000 | I215: =I214*I209 -> 1400000 | J215: =SUM(C215:I215) -> 9800000
... 79 more rows

Sheet Financial Modelling
A1: Finanacial Statement Forecasting Sensitivity & Scenario Analysis
A2: Prepared By: | C2: Year 1F | H2: Year 2F | M2: Year 3F | R2: Year 4F | W2: Year 5F
A3: © CPA Abdulrahman Juma Bakari | C3: Nursery | D3: Junior | E3: Senior | F3: =IFERROR(IF(OR(F300=F319,F300-F319<=0),"Balanced","Error"),"") -> Balanced | H3: Nursery | I3: Junior | J3: Senior | K3: =IFERROR(IF(OR(K300=K319,K300-K319<=0),"Balanced","Error"),"") -> Balanced | M3: Nursery | N3: Junior | O3: Senior | P3: =IFERROR(IF(OR(P300=P319,P300-P319<=0),"Balanced","Error"),"") -> Balanced | R3: Nursery | S3: Junior | T3: Senior | U3: =IFERROR(IF(OR(U300=U319,U300-U319<=0),"Balanced","Error"),"") -> Balanced | W3: Nursery | X3: Junior | Y3: Senior | Z3: =IFERROR(IF(OR(Z300=Z319,Z300-Z319<=0),"Balanced","Error"),"") -> Balanced
A4: Scenario | B4: 2 | G4: 1 | K4: =IF(B4=1,"5% @ 5std",IF(B4=2,"7.5% @ 10std",IF(B4=3,"2.5% @ 3std",""))) -> 7.5% @ 10std | P4: =IF(B4=1,"5% @ 5std",IF(B4=2,"7.5% @ 10std",IF(B4=3,"2.5% @ 3std",""))) -> 7.5% @ 10std | U4: =IF(B4=1,"5% @ 5std",IF(B4=2,"7.5% @ 10std",IF(B4=3,"2.5% @ 3std",""))) -> 7.5% @ 10std | Z4: =IF(B4=1,"5% @ 5std",IF(B4=2,"7.5% @ 10std",IF(B4=3,"2.5% @ 3std",""))) -> 7.5% @ 10std
A6: Assumption
A7: Income Statement(Modarate Case) | C7: 5% increase in Tution Fee @ a modarate Student Increase of 5 par year | I7: 0.05 | J7: =I7+1 -> 1.05
A8: Tution Fee | C8: =JUB -> 5831250 | D8: =GABA -> 17746500 | E8: =JHDF -> 40254000 | F8: =SUM(C8:E8) -> 63831750 | H8: =FG37J -> 12245640 | I8: =RT -> 37267650 | J8: =GDF -> 84533400 | K8: =SUM(H8:J8) -> 134046690 | M8: =WER456FDG -> 19286910 | N8: =GHJJK -> 58696560 | O8: =QW -> 133140105 | P8: =SUM(M8:O8) -> 211123575 | R8: =DFGDG -> 27001620 | S8: =FH -> 82175220 | T8: =DFGHF -> 186396180 | U8: =SUM(R8:T8) -> 295573020 | W8: =JUMA -> 35439604 | X8: =OL -> 107854907.8 | Y8: =HAH -> 244644941.2 | Z8: =SUM(W8:Y8) -> 387939453
A9: Registration Fee | C9: =OPPO -> 1000000 | D9: =TUO -> 1500000 | E9: =SDKJFH -> 1750000 | F9: =SUM(C9:E9) -> 4250000 | H9: =DFJH -> 2000000 | I9: =FHFG -> 3000000 | J9: =GHJ -> 3500000 | K9: =SUM(H9:J9) -> 8500000 | M9: =HJ -> 3000000 | N9: =DF -> 4500000 | O9: =CVN -> 5250000 | P9: =SUM(M9:O9) -> 12750000 | R9: =ERYRT -> 4000000 | S9: =DFHTR -> 6000000 | T9: =ER456GR -> 7000000 | U9: =SUM(R9:T9) -> 17000000 | W9: =ROB -> 5000000 | X9: =COL -> 7500000 | Y9: =ROP -> 8750000 | Z9: =SUM(W9:Y9) -> 21250000
A10: Caution Fee-Refundable | C10: =TY -> 1400000 | D10: =RUI -> 2100000 | E10: =SDJK -> 2450000 | F10: 5950000 | H10: =DFJHK -> 2800000 | I10: =TUY -> 4200000 | J10: =TYUD -> 4900000 | K10: 11900000 | M10: =GFF -> 4200000 | N10: =ZXC -> 6300000 | O10: =QWEWER -> 7350000 | P10: 17850000 | R10: =SDSG -> 5600000 | S10: =DFGFD -> 8400000 | T10: =DFGFD5564GHGF -> 9800000 | U10: 23800000 | W10: =TOM -> 7000000 | X10: =BOLT -> 10500000 | Y10: =SOP -> 12250000 | Z10: 29750000
A11: Capital Levy | C11: =TOB -> 3000000 | D11: =TUI -> 4500000 | E11: =KSDJFJK -> 5250000 | F11: 12750000 | H11: =ERR -> 6000000 | I11: =JKL -> 9000000 | J11: =DFG -> 10500000 | K11: 25500000 | M11: =GJ -> 9000000 | N11: =ZSE -> 13500000 | O11: =QDDGF -> 15750000 | P11: 38250000 | R11: =ERTYTR -> 12000000 | S11: =ZDFG -> 18000000 | T11: =DFDF467DF -> 21000000 | U11: 51000000 | W11: =NOM -> 15000000 | X11: =DOM -> 22500000 | Y11: =KOP -> 26250000 | Z11: 63750000
A12: Transport Fee | C12: =Y -> 2520000 | D12: =WERUIYIU -> 4185000 | E12: =SDFJK -> 5355000 | F12: 12060000 | H12: =HGH45T -> 6525000 | I12: =FGH -> 8370000 | J12: =TRY -> 10710000 | K12: 25605000 | M12: =TRYTY -> 7560000 | N12: =TRTYFG -> 12555000 | O12: =RTIOP -> 16065000 | P12: 36180000 | R12: =FDGD -> 10080000 | S12: =ERT -> 16740000 | T12: =ERER34FGFG -> 21420000 | U12: 48240000 | W12: =JOB -> 12600000 | X12: =WOB -> 20925000 | Y12: =COP -> 26775000 | Z12: 60300000
A13: Lunch & Snacks Fee | C13: =EWQ -> 1938000 | D13: =HSJKLHK -> 3343500 | E13: =JKSDFK -> 4226250 | F13: 9507750 | H13: =GHU56D -> 3876000 | I13: =VBHG -> 6687000 | J13: =YU -> 8452500 | K13: 19015500 | M13: =WER -> 5814000 | N13: =RDFG -> 10030500 | O13: =BMRTE -> 12678750 | P13: 28523250 | R13: =CVBCVFG -> 7752000 | S13: =DFF -> 13374000 | T13: =DSFSD -> 16905000 | U13: 38031000 | W13: =FOB -> 9690000 | X13: =TOP -> 16717500 | Y13: =BOMB -> 21131250 | Z13: 47538750
A14: Activity Fee | C14: =GA -> 810000 | D14: =SDLFKHKL -> 2052000 | E14: =IERYUI -> 3053250 | F14: 5915250 | H14: =DFFG56X -> 1620000 | I14: =DFGDF -> 4104000 | J14: =SDF -> 6106500 | K14: 11830500 | M14: =FNG -> 2430000 | N14: =YUIU -> 6156000 | O14: =FDGFDG -> 9159750 | P14: 17745750 | R14: =SDFSG -> 3240000 | S14: =CVBCVN -> 8208000 | T14: =ER665RR -> 12213000 | U14: 23661000 | W14: =LOB -> 4050000 | X14: =FOP -> 10260000 | Y14: =TOYP -> 15266250 | Z14: 29576250
N16: 0.1 | S16: 0.1 | X16: 0.1
A17: Salaries & Benefits | D17: Monthly | E17: Number | F17: Yearly | I17: Monthly | J17: Number | K17: Yearly | N17: Monthly | O17: Number | P17: Yearly | S17: Monthly | T17: Number | U17: Yearly | X17: Monthly | Y17: Number | Z17: Yearly
A18: Salaries - Local Teachers | D18: 150000 | E18: 14 | F18: =D18*E18*12 -> 25200000 | I18: 150000 | J18: 20 | K18: =I18*J18*12 -> 36000000 | N18: =$I18*(1+$N$202) -> 165000 | O18: 22 | P18: =N18*O18*12 -> 43560000 | S18: 165000 | T18: 24 | U18: =S18*T18*12 -> 47520000 | X18: =S18*($X$202+1) -> 181500 | Y18: 24 | Z18: =X18*Y18*12 -> 52272000
A19: Salaries -Expatriates Teachers | D19: 350000 | E19: 4 | F19: =D19*E19*12 -> 16800000 | I19: 350000 | J19: 6 | K19: =I19*J19*12 -> 25200000 | N19: 385000 | O19: 6 | P19: =N19*O19*12 -> 27720000 | S19: 385000 | T19: 7 | U19: =S19*T19*12 -> 32340000 | X19: 423500 | Y19: 7 | Z19: =X19*Y19*12 -> 35574000
A20: Salaries -Principal | D20: 500000 | E20: 1 | F20: 6000000 | I20: 500000 | J20: 1 | K20: 6000000 | N20: 550000 | O20: 1 | P20: 6600000 | S20: 550000 | T20: 1 | U20: 6600000 | X20: 605000 | Y20: 1 | Z20: 7260000
A21: Salaries -Deputy Principal | D21: 400000 | E21: 1 | F21: 4800000 | I21: 400000 | J21: 1 | K21: 4800000 | N21: 440000 | O21: 1 | P21: 5280000 | S21: 440000 | T21: 1 | U21: 5280000 | X21: 484000 | Y21: 1 | Z21: 5808000
A22: Section Head - Nursery | D22: 300000 | E22: 1 | F22: 3600000 | I22: 300000 | J22: 1 | K22: 3600000 | N22: 330000 | O22: 1 | P22: 3960000 | S22: 330000 | T22: 1 | U22: 3960000 | X22: 363000 | Y22: 1 | Z22: 4356000
A23: Section Head - Primary | D23: 300000 | E23: 1 | F23: 3600000 | I23: 300000 | J23: 1 | K23: 3600000 | N23: 330000 | O23: 1 | P23: 3960000 | S23: 330000 | T23: 1 | U23: 3960000 | X23: 363000 | Y23: 1 | Z23: 4356000
A24: Section Head - High | D24: 300000 | E24: 1 | F24: 3600000 | I24: 300000 | J24: 1 | K24: 3600000 | N24: 330000 | O24: 1 | P24: 3960000 | S24: 330000 | T24: 1 | U24: 3960000 | X24: 363000 | Y24: 1 | Z24: 4356000
A25: Salary -Support Stuff | D25: 30000 | E25: 10 | F25: 3600000 | I25: 30000 | J25: 15 | K25: 5400000 | N25: 33000 | O25: 20 | P25: 7920000 | S25: 33000 | T25: 20 | U25: 7920000 | X25: 36300 | Y25: 20 | Z25: 8712000
A26: - Support Stuff | D26: 60000 | E26: 5 | F26: 3600000 | I26: 60000 | J26: 8 | K26: 5760000 | N26: 66000 | O26: 8 | P26: 6336000 | S26: 66000 | T26: 9 | U26: 7128000 | X26: 72600 | Y26: 9 | Z26: 7840800
A27: Cleaning Services & Sanitation | D27: 50000 | F27: =D27*12 -> 600000 | I27: 50000 | K27: =I27*12 -> 600000 | N27: 50000 | P27: =N27*12 -> 600000 | S27: 50000 | U27: =S27*12 -> 600000 | X27: 50000 | Z27: =X27*12 -> 600000
A28: Security Services | D28: 200000 | F28: =D28*12 -> 2400000 | I28: 200000 | K28: =I28*12 -> 2400000 | N28: 200000 | P28: =N28*12 -> 2400000 | S28: 200000 | U28: =S28*12 -> 2400000 | X28: 200000 | Z28: =X28*12 -> 2400000
F29: =SUM(F18:F28) -> 73800000 | K29: =SUM(K18:K28) -> 96960000 | P29: =SUM(P18:P28) -> 112296000 | U29: =SUM(U18:U28) -> 121668000 | Z29: =SUM(Z18:Z28) -> 133534800
A30: Benefits - Health | D30: =SUM(D18:D28)*0.0145 -> 38280 | F30: =D30*12 -> 459360 | I30: =SUM($I$204:$I$214)*0.0145 -> 40455 | K30: =I30*12 -> 485460 | N30: =SUM(N18:N28)*0.0145 -> 41745.5 | P30: =N30*12 -> 500946 | S30: =SUM(S18:S28)*0.0145 -> 41745.5 | U30: =S30*12 -> 500946 | X30: =SUM(X18:X28)*0.0145 -> 45557.55 | Z30: =X30*12 -> 546690.6
A31: ="-House" -> -House | D31: =SUM(D18:D28)*0.0105 -> 27720 | F31: =D31*12 -> 332640 | I31: =SUM($I$204:$I$214)*0.0105 -> 29295 | K31: =I31*12 -> 351540 | N31: =SUM(N18:N28)*0.0105 -> 30229.5 | P31: =N31*12 -> 362754 | S31: =SUM(S18:S28)*0.0105 -> 30229.5 | U31: =S31*12 -> 362754 | X31: =SUM(X18:X28)*0.0105 -> 32989.95 | Z31: =X31*12 -> 395879.4
A32: ="-Transport" -> -Transport | D32: =SUM(D18:D28)*0.0175 -> 46200 | F32: =D32*12 -> 554400 | I32: =SUM($I$204:$I$214)*0.0175 -> 48825 | K32: =I32*12 -> 585900 | N32: =SUM(N18:N28)*0.0175 -> 50382.5 | P32: =N32*12 -> 604590 | S32: =SUM(S18:S28)*0.0175 -> 50382.5 | U32: =S32*12 -> 604590 | X32: =SUM(X18:X28)*0.0175 -> 54983.25 | Z32: =X32*12 -> 659799
A33: Accountant | D33: 80000 | E33: 1 | F33: =D33*12*E33 -> 960000 | I33: 80000 | J33: 1 | K33: =I33*12*J33 -> 960000 | N33: 165000 | O33: 1 | P33: =N33*12*O33 -> 1980000 | S33: 165000 | T33: 1 | U33: =S33*12*T33 -> 1980000 | X33: 181500 | Y33: 1 | Z33: =X33*12*Y33 -> 2178000
A34: Bursar & Clerk | D34: 60000 | E34: 1 | F34: =D34*12*E34 -> 720000 | I34: 60000 | J34: 1 | K34: =I34*12*J34 -> 720000 | N34: 77000 | O34: 1 | P34: =N34*12*O34 -> 924000 | S34: 77000 | T34: 1 | U34: =S34*12*T34 -> 924000 | X34: 84700 | Y34: 1 | Z34: =X34*12*Y34 -> 1016400
A35: Staff Development | D35: 30000 | E35: 10 | F35: 3600000 | I35: 6000 | J35: 10 | K35: 720000 | P35: 0 | U35: 0 | Z35: 0
F36: =SUM(F30:F35)+F29 -> 80426400 | K36: =SUM(K30:K35)+K29 -> 100782900 | P36: =SUM(P30:P35)+P29 -> 116668290 | U36: =SUM(U30:U35)+U29 -> 126040290 | Z36: =SUM(Z30:Z35)+Z29 -> 138331569
A38: Utilities
A39: Laboratory consumables | F39: 2000000 | K39: 2000000 | P39: 2000000 | U39: 2000000 | Z39: 2000000
A40: Toiletries | D40: 60000 | E40: 12 | F40: =E40*D40 -> 720000 | I40: 75000 | J40: 12 | K40: =J40*I40 -> 900000 | N40: 93750 | O40: 12 | P40: =O40*N40 -> 1125000 | S40: 117188 | T40: 12 | U40: =T40*S40 -> 1406256 | X40: 146484 | Y40: 12 | Z40: =Y40*X40 -> 1757808
A41: Subscription | F41: 1000000 | K41: 1000000 | P41: 1000000 | U41: 1000000 | Z41: 1000000
A42: Internet | D42: 60000 | E42: 12 | F42: =E42*D42 -> 720000 | I42: 100000 | J42: 12 | K42: =J42*I42 -> 1200000 | N42: 140625 | O42: 12 | P42: =O42*N42 -> 1687500 | S42: 156250 | T42: 12 | U42: =T42*S42 -> 1875000 | X42: 195313 | Y42: 12 | Z42: =Y42*X42 -> 2343756
A43: Telephone & Postage | D43: 50000 | E43: 12 | F43: 600000 | I43: 75000 | J43: 12 | K43: 900000 | N43: 93750 | O43: 12 | P43: 1125000 | S43: 117188 | T43: 12 | U43: 1406256 | X43: 146484 | Y43: 12 | Z43: 1757808
A44: Computer Exp | F44: 200000 | K44: 200000 | P44: 200000 | U44: 200000 | Z44: 200000
A45: Electricity & Water | D45: 100000 | E45: 12 | F45: 1200000 | I45: 100000 | J45: 12 | K45: 1200000 | N45: 100000 | O45: 12 | P45: 1200000 | S45: 100000 | T45: 12 | U45: 1200000 | X45: 100000 | Y45: 12 | Z45: 1200000
A46: Staff Food | D46: 80000 | E46: 12 | F46: 960000 | I46: 87500 | J46: 12 | K46: 1050000 | N46: 109375 | O46: 12 | P46: 1312500 | S46: 136719 | T46: 12 | U46: 1640628 | X46: 170898 | Y46: 12 | Z46: 2050776
A47: Student Meals and Snack | D47: 250000 | E47: 12 | F47: =E47*D47 -> 3000000 | I47: 500000 | J47: 12 | K47: =J47*I47 -> 6000000 | N47: 510000 | O47: 12 | P47: =O47*N47 -> 6120000 | S47: 520000 | T47: 12 | U47: =T47*S47 -> 6240000 | X47: 540000 | Y47: 12 | Z47: =Y47*X47 -> 6480000
A48: Miscellenous | D48: 62500 | E48: 12 | F48: =E48*D48 -> 750000 | I48: 125000 | J48: 12 | K48: =J48*I48 -> 1500000 | P48: =O48*N48 -> 0 | S48: 193313 | T48: 12 | U48: =T48*S48 -> 2319756 | X48: 202141 | Y48: 12 | Z48: =Y48*X48 -> 2425692
F49: =SUM(F39:F48) -> 11150000 | K49: =SUM(K39:K48) -> 15950000 | P49: =SUM(P39:P48) -> 15770000 | U49: =SUM(U39:U48) -> 19287896 | Z49: =SUM(Z39:Z48) -> 21215840
A51: Supplies & Legal Exp
A52: Legal Fee | F52: 200000 | K52: 200000 | P52: 200000 | U52: 200000 | Z52: 200000
A53: Supplies-Instructional | I53: 100000 | J53: 12 | K53: =J53*I53 -> 1200000 | N53: 80000 | O53: 12 | P53: =O53*N53 -> 960000 | S53: 80000 | T53: 12 | U53: =T53*S53 -> 960000 | X53: 70000 | Y53: 12 | Z53: =Y53*X53 -> 840000
A54: Supplies-Administrative | I54: 100000 | J54: 12 | K54: 1200000 | N54: 90000 | O54: 12 | P54: 1080000 | S54: 90000 | T54: 12 | U54: 1080000 | X54: 60000 | Y54: 12 | Z54: 720000
A55: Supplies-General | I55: 100000 | J55: 12 | K55: 1200000 | N55: 90000 | O55: 12 | P55: 1080000 | S55: 90000 | T55: 12 | U55: 1080000 | X55: 62000 | Y55: 12 | Z55: 744000
A56: Printing & Advertising | D56: 100000 | E56: 12 | F56: =D56*E56 -> 1200000 | I56: 100000 | J56: 12 | K56: 1200000 | N56: 100000 | O56: 12 | P56: 1200000 | S56: 100000 | T56: 12 | U56: 1200000 | X56: 100000 | Y56: 12 | Z56: 1200000
A57: Licences & Service charge | F57: 200000 | K57: 200000 | P57: 200000 | U57: 200000 | Z57: 200000
A58: Consultancy fees | F58: 200000 | K58: 200000 | P58: 200000 | U58: 200000 | Z58: 200000
A59: Maintenance and Repair | I59: 200000 | J59: 12 | K59: =J59*I59 -> 2400000 | N59: 100000 | O59: 12 | P59: =O59*N59 -> 1200000 | S59: 120000 | T59: 12 | U59: =T59*S59 -> 1440000 | X59: 100000 | Y59: 12 | Z59: =Y59*X59 -> 1200000
A60: Insurance | F60: 100000 | K60: 100000 | P60: 100000 | U60: 100000 | Z60: 100000
F61: =SUM(F52:F60) -> 1900000 | K61: =SUM(K52:K60) -> 7900000 | P61: =SUM(P52:P60) -> 6220000 | U61: =SUM(U52:U60) -> 6460000 | Z61: =SUM(Z52:Z60) -> 5404000
A62: Finance Cost
A63: Start Up Loan(Long Term) | F63: ='Source Data'!F284 -> 53040000 | K63: ='Source Data'!F285 -> 50671414.11 | P63: ='Source Data'!F286 -> 47900168.62 | U63: ='Source Data'!F287 -> 44657811.4 | Z63: ='Source Data'!F288 -> 40864253.45
A64: Short Term Loan
F65: =SUM(F63:F64) -> 53040000 | K65: =SUM(K63:K64) -> 50671414.11 | P65: =SUM(P63:P64) -> 47900168.62 | U65: =SUM(U63:U64) -> 44657811.4 | Z65: =SUM(Z63:Z64) -> 40864253.45
A67: Caution Money Refund | D67: 70000 | E67: 5 | F67: =D67*E67 -> 350000 | I67: 70000 | J67: 10 | K67: =I67*J67 -> 700000 | N67: 70000 | O67: 15 | P67: =N67*O67 -> 1050000 | S67: 70000 | T67: 20 | U67: =S67*T67 -> 1400000 | X67: 70000 | Y67: 25 | Z67: =X67*Y67 -> 1750000
A69: Income Statement(Best Case) | C69: 7.5% increase in Tution Fee @ a modarate Student Increase of 10 par year | I69: 0.075 | J69: =I69+1 -> 1.075
A70: Tution Fee | C70: 5831250 | D70: 17746500 | E70: 40254000 | F70: 63831750 | H70: =((C70/(3*5)*J69)*(15*3)) -> 18805781.25 | I70: =((D70/(3*5)*J69)*(15*3)) -> 57232462.5 | J70: =((E70/(3*5)*J69)*(15*3)) -> 129819150 | K70: =SUM(H70:J70) -> 205857393.8 | M70: =((H70/(3*15)*J69)*(25*3)) -> 33693691.41 | N70: =((I70/(3*15)*J69)*(25*3)) -> 102541495.3 | O70: =((J70/(3*15)*J69)*(25*3)) -> 232592643.8 | P70: =SUM(M70:O70) -> 368827830.5 | R70: =((M70/(3*25)*J69)*(35*3)) -> 50709005.57 | S70: =((N70/(3*25)*J69)*(35*3)) -> 154324950.4 | T70: =((O70/(3*25)*J69)*(35*3)) -> 350051928.8 | U70: =SUM(R70:T70) -> 555085884.9 | W70: =((R70/(3*35)*J69)*(45*3)) -> 70087089.84 | X70: =((S70/(3*35)*J69)*(45*3)) -> 213299127.9 | Y70: =((T70/(3*35)*J69)*(45*3)) -> 483821773.1 | Z70: =SUM(W70:Y70) -> 767207990.9
A71: Registration Fee | C71: 1000000 | D71: 1500000 | E71: 1750000 | F71: 4250000 | H71: =((C71/20)*(15*4)) -> 3000000 | I71: =((D71/30)*(15*6)) -> 4500000 | J71: =((E71/35)*(15*7)) -> 5250000 | K71: =SUM(H71:J71) -> 12750000 | M71: =((H71/(15*4))*(25*4)) -> 5000000 | N71: =((I71/(15*6))*(25*6)) -> 7500000 | O71: =((J71/(15*7))*(25*7)) -> 8750000 | P71: =SUM(M71:O71) -> 21250000 | R71: =((M71/(25*4))*(35*4)) -> 7000000 | S71: =((N71/(25*6))*(35*6)) -> 10500000 | T71: =((O71/(25*7))*(35*7)) -> 12250000 | U71: =SUM(R71:T71) -> 29750000 | W71: =((R71/(35*4))*(45*4)) -> 9000000 | X71: =((S71/(35*6))*(45*6)) -> 13500000 | Y71: =((T71/(35*7))*(45*7)) -> 15750000 | Z71: =SUM(W71:Y71) -> 38250000
A72: Caution Fee-Refundable | C72: 1400000 | D72: 2100000 | E72: 2450000 | F72: 5950000 | H72: =((C72/20)*(15*4)) -> 4200000 | I72: =((D72/30)*(15*6)) -> 6300000 | J72: =((E72/35)*(15*7)) -> 7350000 | K72: 17850000 | M72: =((H72/(15*4))*(25*4)) -> 7000000 | N72: =((I72/(15*6))*(25*6)) -> 10500000 | O72: =((J72/(15*7))*(25*7)) -> 12250000 | P72: 29750000 | R72: =((M72/(25*4))*(35*4)) -> 9800000 | S72: =((N72/(25*6))*(35*6)) -> 14700000 | T72: =((O72/(25*7))*(35*7)) -> 17150000 | U72: =SUM(R72:T72) -> 41650000 | W72: =((R72/(35*4))*(45*4)) -> 12600000 | X72: =((S72/(35*6))*(45*6)) -> 18900000 | Y72: =((T72/(35*7))*(45*7)) -> 22050000 | Z72: =SUM(W72:Y72) -> 53550000
A73: Capital Levy | C73: 3000000 | D73: 4500000 | E73: 5250000 | F73: 12750000 | H73: =((C73/20)*(15*4)) -> 9000000 | I73: =((D73/30)*(15*6)) -> 13500000 | J73: 15750000 | K73: 38250000 | M73: 15000000 | N73: 22500000 | O73: 26250000 | P73: 63750000 | R73: 21000000 | S73: 31500000 | T73: 36750000 | U73: 89250000 | W73: 27000000 | X73: 40500000 | Y73: 47250000 | Z73: 114750000
A74: Transport Fee | C74: 2520000 | D74: 4185000 | E74: 5355000 | F74: 12060000 | H74: =((C74/(20*3))*(15*4*3)) -> 7560000 | I74: =((D74/(30*3))*(15*6*3)) -> 12555000 | J74: =((E74/(35*3))*(15*7*3)) -> 16065000 | K74: 36180000 | M74: =((H74/(15*4*3))*(25*4*3)) -> 12600000 | N74: =((I74/(15*6*3))*(25*6*3)) -> 20925000 | O74: =((J74/(15*7*3))*(25*7*3)) -> 26775000 | P74: 60300000 | R74: 17640000 | S74: =((N74/(25*6))*(35*6)) -> 29295000 | T74: =((O74/(25*7))*(35*7)) -> 37485000 | U74: 84420000 | W74: =((R74/(35*4))*(45*4)) -> 22680000 | X74: =((S74/(35*6))*(45*6)) -> 37665000 | Y74: =((T74/(35*7))*(45*7)) -> 48195000 | Z74: 108540000
A75: Lunch & Snacks Fee | C75: 1938000 | D75: 3343500 | E75: 4226250 | F75: 9507750 | H75: =((C75/(20*3))*(15*4*3)) -> 5814000 | I75: =((D75/(30*3))*(15*6*3)) -> 10030500 | J75: =((E75/(35*3))*(15*7*3)) -> 12678750 | K75: 28523250 | M75: =((H75/(15*4*3))*(25*4*3)) -> 9690000 | N75: =((I75/(15*6*3))*(25*6*3)) -> 16717500 | O75: =((J75/(15*7*3))*(25*7*3)) -> 21131250 | P75: 47538750 | R75: 13566000 | S75: =((N75/(25*6))*(35*6)) -> 23404500 | T75: =((O75/(25*7))*(35*7)) -> 29583750 | U75: 66554250 | W75: =((R75/(35*4))*(45*4)) -> 17442000 | X75: =((S75/(35*6))*(45*6)) -> 30091500 | Y75: =((T75/(35*7))*(45*7)) -> 38036250 | Z75: 85569750
A76: Activity Fee | C76: 810000 | D76: 2052000 | E76: 3053250 | F76: 5915250 | H76: 2430000 | I76: =((D76/(30*3))*(15*6*3)) -> 6156000 | J76: 9159750 | K76: 17745750 | M76: 4050000 | N76: 10260000 | O76: 15266250 | P76: 29576250 | R76: 5670000 | S76: 14364000 | T76: 21372750 | U76: 41406750 | W76: 7290000 | X76: 18468000 | Y76: 27479250 | Z76: 53237250
N78: 0.1 | S78: 0.1 | X78: 0.1
A79: Salaries & Benefits | D79: Monthly | E79: Number | F79: Yearly | I79: Monthly | J79: Number | K79: Yearly | N79: Monthly | O79: Number | P79: Yearly | S79: Monthly | T79: Number | U79: Yearly | X79: Monthly | Y79: Number | Z79: Yearly
A80: Salaries - Local Teachers | D80: 150000 | E80: 14 | F80: =D80*E80*12 -> 25200000 | I80: 150000 | J80: 25 | K80: =I80*J80*12 -> 45000000 | N80: =$I80*(1+$N$202) -> 165000 | O80: 34 | P80: =N80*O80*12 -> 67320000 | S80: 165000 | T80: 43 | U80: =S80*T80*12 -> 85140000 | X80: =S80*($X$202+1) -> 181500 | Y80: 52 | Z80: =X80*Y80*12 -> 113256000
A81: Salaries -Expatriates Teachers | D81: 350000 | E81: 4 | F81: =D81*E81*12 -> 16800000 | I81: 350000 | J81: 10 | K81: =I81*J81*12 -> 42000000 | N81: 385000 | O81: 16 | P81: =N81*O81*12 -> 73920000 | S81: 385000 | T81: 22 | U81: =S81*T81*12 -> 101640000 | X81: 423500 | Y81: 28 | Z81: =X81*Y81*12 -> 142296000
A82: Salaries -Principal | D82: 500000 | E82: 1 | F82: 6000000 | I82: 500000 | J82: 1 | K82: 6000000 | N82: 550000 | O82: 1 | P82: 6600000 | S82: 550000 | T82: 1 | U82: 6600000 | X82: 605000 | Y82: 1 | Z82: 7260000
A83: Salaries -Deputy Principal | D83: 400000 | E83: 1 | F83: 4800000 | I83: 400000 | J83: 1 | K83: 4800000 | N83: 440000 | O83: 1 | P83: 5280000 | S83: 440000 | T83: 1 | U83: 5280000 | X83: 484000 | Y83: 1 | Z83: 5808000
A84: Section Head - Nursery | D84: 300000 | E84: 1 | F84: 3600000 | I84: 300000 | J84: 1 | K84: 3600000 | N84: 330000 | O84: 1 | P84: 3960000 | S84: 330000 | T84: 1 | U84: 3960000 | X84: 363000 | Y84: 1 | Z84: 4356000
A85: Section Head - Primary | D85: 300000 | E85: 1 | F85: 3600000 | I85: 300000 | J85: 1 | K85: 3600000 | N85: 330000 | O85: 1 | P85: 3960000 | S85: 330000 | T85: 1 | U85: 3960000 | X85: 363000 | Y85: 1 | Z85: 4356000
A86: Section Head - High | D86: 300000 | E86: 1 | F86: 3600000 | I86: 300000 | J86: 1 | K86: 3600000 | N86: 330000 | O86: 1 | P86: 3960000 | S86: 330000 | T86: 1 | U86: 3960000 | X86: 363000 | Y86: 1 | Z86: 4356000
A87: Salary -Support Stuff | D87: 30000 | E87: 10 | F87: 3600000 | I87: 30000 | J87: 18 | K87: 6480000 | N87: 33000 | O87: 20 | P87: 7920000 | S87: 33000 | T87: 22 | U87: 8712000 | X87: 36300 | Y87: 24 | Z87: 10454400
A88: - Support Stuff | D88: 60000 | E88: 5 | F88: 3600000 | I88: 60000 | J88: 8 | K88: 5760000 | N88: 66000 | O88: 8 | P88: 6336000 | S88: 66000 | T88: 11 | U88: 8712000 | X88: 72600 | Y88: 11 | Z88: 9583200
A89: Cleaning Services | D89: 200000 | F89: =D89*12 -> 2400000 | I89: 300000 | K89: =I89*12 -> 3600000 | P89: =N89*12 -> 0 | U89: =S89*12 -> 0 | Z89: =X89*12 -> 0
A90: Security Services | D90: 100000 | F90: =D90*12 -> 1200000 | I90: 100000 | K90: =I90*12 -> 1200000 | N90: 100000 | P90: =N90*12 -> 1200000 | S90: 100000 | U90: =S90*12 -> 1200000 | X90: 100000 | Z90: =X90*12 -> 1200000
F91: =SUM(F80:F90) -> 74400000 | K91: =SUM(K80:K90) -> 125640000 | P91: =SUM(P80:P90) -> 180456000 | U91: =SUM(U80:U90) -> 229164000 | Z91: =SUM(Z80:Z90) -> 302925600
A92: Benefits - Health | D92: =SUM(D80:D90)*0.0145 -> 39005 | F92: =D92*12 -> 468060 | I92: =SUM($I$204:$I$214)*0.0145 -> 40455 | K92: =I92*12 -> 485460 | N92: =SUM(N80:N90)*0.0145 -> 39570.5 | P92: =N92*12 -> 474846 | S92: =SUM(S80:S90)*0.0145 -> 39570.5 | U92: =S92*12 -> 474846 | X92: =SUM(X80:X90)*0.0145 -> 43382.55 | Z92: =X92*12 -> 520590.6
A93: ="-House" -> -House | D93: =SUM(D80:D90)*0.0105 -> 28245 | F93: =D93*12 -> 338940 | I93: =SUM($I$204:$I$214)*0.0105 -> 29295 | K93: =I93*12 -> 351540 | N93: =SUM(N80:N90)*0.0105 -> 28654.5 | P93: =N93*12 -> 343854 | S93: =SUM(S80:S90)*0.0105 -> 28654.5 | U93: =S93*12 -> 343854 | X93: =SUM(X80:X90)*0.0105 -> 31414.95 | Z93: =X93*12 -> 376979.4
A94: ="-Transport" -> -Transport | D94: =SUM(D80:D90)*0.0175 -> 47075 | F94: =D94*12 -> 564900 | I94: =SUM($I$204:$I$214)*0.0175 -> 48825 | K94: =I94*12 -> 585900 | N94: =SUM(N80:N90)*0.0175 -> 47757.5 | P94: =N94*12 -> 573090 | S94: =SUM(S80:S90)*0.0175 -> 47757.5 | U94: =S94*12 -> 573090 | X94: =SUM(X80:X90)*0.0175 -> 52358.25 | Z94: =X94*12 -> 628299
A95: Accountant | D95: 80000 | E95: 1 | F95: =D95*12*E95 -> 960000 | I95: 80000 | J95: 1 | K95: =I95*12*J95 -> 960000 | N95: 165000 | O95: 2 | P95: =N95*12*O95 -> 3960000 | S95: 165000 | T95: 3 | U95: =S95*12*T95 -> 5940000 | X95: 181500 | Y95: 3 | Z95: =X95*12*Y95 -> 6534000
A96: Bursar & Clerk | D96: 60000 | E96: 1 | F96: =D96*12*E96 -> 720000 | I96: 60000 | J96: 1 | K96: =I96*12*J96 -> 720000 | N96: 77000 | O96: 1 | P96: =N96*12*O96 -> 924000 | S96: 77000 | T96: 2 | U96: =S96*12*T96 -> 1848000 | X96: 84700 | Y96: 2 | Z96: =X96*12*Y96 -> 2032800
A97: Staff Development | D97: 30000 | E97: 10 | F97: 3600000 | I97: 6000 | J97: 10 | K97: 720000 | P97: 0 | U97: 0 | Z97: 0
F98: =SUM(F92:F97)+F91 -> 81051900 | K98: =SUM(K92:K97)+K91 -> 129462900 | P98: =SUM(P92:P97)+P91 -> 186731790 | U98: =SUM(U92:U97)+U91 -> 238343790 | Z98: =SUM(Z92:Z97)+Z91 -> 313018269
A100: Utilities
A101: Laboratory consumables | F101: 2000000 | K101: 2000000 | P101: 2000000 | U101: 2000000 | Z101: 2000000
A102: Toiletries | D102: 60000 | E102: 12 | F102: =E102*D102 -> 720000 | I102: 75000 | J102: 12 | K102: =J102*I102 -> 900000 | N102: 93750 | O102: 12 | P102: =O102*N102 -> 1125000 | S102: 117188 | T102: 12 | U102: =T102*S102 -> 1406256 | X102: 146484 | Y102: 12 | Z102: =Y102*X102 -> 1757808
A103: Subscription | F103: 1000000 | K103: 1000000 | P103: 1000000 | U103: 1000000 | Z103: 1000000
A104: Internet | D104: 60000 | E104: 12 | F104: =E104*D104 -> 720000 | I104: 100000 | J104: 12 | K104: =J104*I104 -> 1200000 | N104: 140625 | O104: 12 | P104: =O104*N104 -> 1687500 | S104: 156250 | T104: 12 | U104: =T104*S104 -> 1875000 | X104: 195313 | Y104: 12 | Z104: =Y104*X104 -> 2343756
A105: Telephone & Postage | D105: 50000 | E105: 12 | F105: 600000 | I105: 75000 | J105: 12 | K105: 900000 | N105: 93750 | O105: 12 | P105: 1125000 | S105: 117188 | T105: 12 | U105: 1406256 | X105: 146484 | Y105: 12 | Z105: 1757808
A106: Computer Exp | F106: 200000 | K106: 200000 | P106: 200000 | U106: 200000 | Z106: 200000
A107: Electricity & Water | D107: 100000 | E107: 12 | F107: =E107*D107 -> 1200000 | I107: 100000 | J107: 12 | K107: =J107*I107 -> 1200000 | N107: 100000 | O107: 12 | P107: =O107*N107 -> 1200000 | S107: 100000 | T107: 12 | U107: =T107*S107 -> 1200000 | X107: 100000 | Y107: 12 | Z107: =Y107*X107 -> 1200000
A108: Staff Food | D108: 80000 | E108: 12 | F108: 960000 | I108: 87500 | J108: 12 | K108: 1050000 | N108: 109375 | O108: 12 | P108: 1312500 | S108: 136719 | T108: 12 | U108: 1640628 | X108: 170898 | Y108: 12 | Z108: 2050776
A109: Student Meals and Snack | D109: 250000 | E109: 12 | F109: =E109*D109 -> 3000000 | I109: 500000 | J109: 12 | K109: =J109*I109 -> 6000000 | N109: 510000 | O109: 12 | P109: =O109*N109 -> 6120000 | S109: 520000 | T109: 12 | U109: =T109*S109 -> 6240000 | X109: 540000 | Y109: 12 | Z109: =Y109*X109 -> 6480000
A110: Miscellenous | D110: 62500 | E110: 12 | F110: =E110*D110 -> 750000 | I110: 125000 | J110: 12 | K110: =J110*I110 -> 1500000 | P110: =O110*N110 -> 0 | S110: 193313 | T110: 12 | U110: =T110*S110 -> 2319756 | X110: 202141 | Y110: 12 | Z110: =Y110*X110 -> 2425692
F111: =SUM(F101:F110) -> 11150000 | K111: =SUM(K101:K110) -> 15950000 | P111: =SUM(P101:P110) -> 15770000 | U111: =SUM(U101:U110) -> 19287896 | Z111: =SUM(Z101:Z110) -> 21215840
A113: Supplies &Legal Exp
A114: Legal Fee | F114: 200000 | K114: 200000 | P114: 200000 | U114: 200000 | Z114: 200000
A115: Supplies-Instructional | I115: 100000 | J115: 12 | K115: =J115*I115 -> 1200000 | N115: 80000 | O115: 12 | P115: =O115*N115 -> 960000 | S115: 80000 | T115: 12 | U115: =T115*S115 -> 960000 | X115: 70000 | Y115: 12 | Z115: =Y115*X115 -> 840000
A116: Supplies-Administrative | I116: 100000 | J116: 12 | K116: 1200000 | N116: 90000 | O116: 12 | P116: 1080000 | S116: 90000 | T116: 12 | U116: 1080000 | X116: 60000 | Y116: 12 | Z116: 720000
A117: Supplies-General | I117: 100000 | J117: 12 | K117: 1200000 | N117: 90000 | O117: 12 | P117: 1080000 | S117: 90000 | T117: 12 | U117: 1080000 | X117: 62000 | Y117: 12 | Z117: 744000
A118: Printing & Advertising | D118: 100000 | E118: 12 | F118: =D118*E118 -> 1200000 | I118: 100000 | J118: 12 | K118: 1200000 | N118: 100000 | O118: 12 | P118: 1200000 | S118: 100000 | T118: 12 | U118: 1200000 | X118: 100000 | Y118: 12 | Z118: 1200000
A119: Licences & Service charge | F119: 200000 | K119: 200000 | P119: 200000 | U119: 200000 | Z119: 200000
A120: Consultancy fees | F120: 200000 | K120: 200000 | P120: 200000 | U120: 200000 | Z120: 200000
A121: Maintenance and Repair | I121: 200000 | J121: 12 | K121: =J121*I121 -> 2400000 | N121: 100000 | O121: 12 | P121: =O121*N121 -> 1200000 | S121: 120000 | T121: 12 | U121: =T121*S121 -> 1440000 | X121: 100000 | Y121: 12 | Z121: =Y121*X121 -> 1200000
A122: Insurance | F122: 100000 | K122: 100000 | P122: 100000 | U122: 100000 | Z122: 100000
F123: =SUM(F114:F122) -> 1900000 | K123: =SUM(K114:K122) -> 7900000 | P123: =SUM(P114:P122) -> 6220000 | U123: =SUM(U114:U122) -> 6460000 | Z123: =SUM(Z114:Z122) -> 5404000
A124: Finance Cost
A125: Start Up Loan(Long Term) | F125: =F63 -> 53040000 | K125: =K63 -> 50671414.11 | P125: 47900168.62 | U125: 44657811.4 | Z125: 40864253.45
A126: Short Term Loan
F127: =SUM(F125:F126) -> 53040000 | K127: =SUM(K125:K126) -> 50671414.11 | P127: =SUM(P125:P126) -> 47900168.62 | U127: =SUM(U125:U126) -> 44657811.4 | Z127: =SUM(Z125:Z126) -> 40864253.45
A129: Caution Money Refund | D129: 70000 | E129: 5 | F129: =D129*E129 -> 350000 | I129: 70000 | J129: 15 | K129: =I129*J129 -> 1050000 | N129: 70000 | O129: 25 | P129: =N129*O129 -> 1750000 | S129: 70000 | T129: 35 | U129: =S129*T129 -> 2450000 | X129: 70000 | Y129: 45 | Z129: =X129*Y129 -> 3150000
A131: Income Statement(Worst Case) | C131: 2.5% increase in Tution Fee @ a modarate Student Increase of 3 par year | I131: 0.025 | J131: =I131+1 -> 1.025
A132: Tution Fee | C132: 5831250 | D132: 17746500 | E132: 40254000 | F132: 63831750 | H132: =((C132/(3*5)*J131)*(8*3)) -> 9563250 | I132: =((D132/(3*5)*J131)*(8*3)) -> 29104260 | J132: =((E132/(3*5)*J131)*(8*3)) -> 66016560 | K132: =SUM(H132:J132) -> 104684070 | M132: =((H132/(3*8)*J131)*(11*3)) -> 13478205.47 | N132: =((I132/(3*8)*J131)*(11*3)) -> 41018816.44 | O132: =((J132/(3*8)*J131)*(11*3)) -> 93042089.25 | P132: =SUM(M132:O132) -> 147539111.2 | R132: =((M132/(3*11)*J131)*(14*3)) -> 17582931.68 | S132: =((N132/(3*11)*J131)*(14*3)) -> 53510910.53 | T132: =((O132/(3*11)*J131)*(14*3)) -> 121377634.6 | U132: =SUM(R132:T132) -> 192471476.8 | W132: =((R132/(3*14)*J131)*(17*3)) -> 21884470.32 | X132: =((S132/(3*14)*J131)*(17*3)) -> 66601972.58 | Y132: =((T132/(3*14)*J131)*(17*3)) -> 151071805.9 | Z132: =SUM(W132:Y132) -> 239558248.8
A133: Registration Fee | C133: 1000000 | D133: 1500000 | E133: 1750000 | F133: 4250000 | H133: =((C133/20)*(8*4)) -> 1600000 | I133: =((D133/30)*(8*6)) -> 2400000 | J133: =((E133/35)*(8*7)) -> 2800000 | K133: =SUM(H133:J133) -> 6800000 | M133: =((H133/(8*4))*(11*4)) -> 2200000 | N133: =((I133/(8*6))*(11*6)) -> 3300000 | O133: =((J133/(8*7))*(11*7)) -> 3850000 | P133: =SUM(M133:O133) -> 9350000 | R133: =((M133/(11*4))*(14*4)) -> 2800000 | S133: =((N133/(11*6))*(14*6)) -> 4200000 | T133: =((O133/(11*7))*(14*7)) -> 4900000 | U133: =SUM(R133:T133) -> 11900000 | W133: =((R133/(14*4))*(17*4)) -> 3400000 | X133: =((S133/(14*6))*(17*6)) -> 5100000 | Y133: =((T133/(14*7))*(17*7)) -> 5950000 | Z133: =SUM(W133:Y133) -> 14450000
A134: Caution Fee-Refundable | C134: 1400000 | D134: 2100000 | E134: 2450000 | F134: 5950000 | H134: =((C134/20)*(8*4)) -> 2240000 | I134: =((D134/30)*(8*6)) -> 3360000 | J134: =((E134/35)*(8*7)) -> 3920000 | K134: 9520000 | M134: =((H134/(8*4))*(11*4)) -> 3080000 | N134: =((I134/(8*6))*(11*6)) -> 4620000 | O134: =((J134/(8*7))*(11*7)) -> 5390000 | P134: 13090000 | R134: =((M134/(11*4))*(14*4)) -> 3920000 | S134: =((N134/(11*6))*(14*6)) -> 5880000 | T134: =((O134/(11*7))*(14*7)) -> 6860000 | U134: 16660000 | W134: =((R134/(14*4))*(17*4)) -> 4760000 | X134: =((S134/(14*6))*(17*6)) -> 7140000 | Y134: =((T134/(14*7))*(17*7)) -> 8330000 | Z134: 20230000
A135: Capital Levy | C135: 3000000 | D135: 4500000 | E135: 5250000 | F135: 12750000 | H135: 4800000 | I135: 7200000 | J135: 8400000 | K135: 20400000 | M135: 6600000 | N135: 9900000 | O135: 11550000 | P135: 28050000 | R135: 8400000 | S135: 12600000 | T135: 14700000 | U135: 35700000 | W135: 10200000 | X135: 15300000 | Y135: 17850000 | Z135: 43350000
A136: Transport Fee | C136: 2520000 | D136: 4185000 | E136: 5355000 | F136: 12060000 | H136: =((C136/(20*3))*(8*4*3)) -> 4032000 | I136: =((D136/(30*3))*(8*6*3)) -> 6696000 | J136: =((E136/(35*3))*(8*7*3)) -> 8568000 | K136: 19296000 | M136: =((H136/(8*4*3))*(8*4*3)) -> 4032000 | N136: =((I136/(8*6*3))*(11*6*3)) -> 9207000 | O136: =((J136/(8*7*3))*(11*7*3)) -> 11781000 | P136: 25020000 | R136: =((M136/(11*4))*(14*4)) -> 5131636.364 | S136: =((N136/(11*6))*(14*6)) -> 11718000 | T136: =((O136/(11*7))*(14*7)) -> 14994000 | U136: 31843636.36 | W136: =((R136/(14*4))*(17*4)) -> 6231272.727 | X136: =((S136/(14*6))*(17*6)) -> 14229000 | Y136: =((T136/(14*7))*(17*7)) -> 18207000 | Z136: 38667272.73
A137: Lunch & Snacks Fee | C137: 1938000 | D137: 3343500 | E137: 4226250 | F137: 9507750 | H137: =((C137/(20*3))*(8*4*3)) -> 3100800 | I137: =((D137/(30*3))*(8*6*3)) -> 5349600 | J137: =((E137/(35*3))*(8*7*3)) -> 6762000 | K137: 15212400 | M137: =((H137/(8*4*3))*(8*4*3)) -> 3100800 | N137: =((I137/(8*6*3))*(11*6*3)) -> 7355700 | O137: =((J137/(8*7*3))*(11*7*3)) -> 9297750 | P137: 19754250 | R137: =((M137/(11*4))*(14*4)) -> 3946472.727 | S137: =((N137/(11*6))*(14*6)) -> 9361800 | T137: =((O137/(11*7))*(14*7)) -> 11833500 | U137: 25141772.73 | W137: =((R137/(14*4))*(17*4)) -> 4792145.455 | X137: =((S137/(14*6))*(17*6)) -> 11367900 | Y137: =((T137/(14*7))*(17*7)) -> 14369250 | Z137: 30529295.45
A138: Activity Fee | C138: 810000 | D138: 2052000 | E138: 3053250 | F138: 5915250 | H138: 1296000 | I138: 3283200 | J138: 4885200 | K138: 9464400 | M138: 1296000 | N138: 4514400 | O138: 6717150 | P138: 12527550 | R138: 1649454.545 | S138: 5745600 | T138: 8549100 | U138: 15944154.55 | W138: 2002909.091 | X138: 6976800 | Y138: 10381050 | Z138: 19360759.09
N140: 0.1 | S140: 0.1 | X140: 0.1
A141: Salaries & Benefits | D141: Monthly | E141: Number | F141: Yearly | I141: Monthly | J141: Number | K141: Yearly | N141: Monthly | O141: Number | P141: Yearly | S141: Monthly | T141: Number | U141: Yearly | X141: Monthly | Y141: Number | Z141: Yearly
A142: Salaries - Local Teachers | D142: 150000 | E142: 14 | F142: =D142*E142*12 -> 25200000 | I142: 150000 | J142: 16 | K142: =I142*J142*12 -> 28800000 | N142: =$I142*(1+$N$202) -> 165000 | O142: 18 | P142: =N142*O142*12 -> 35640000 | S142: 165000 | T142: 20 | U142: =S142*T142*12 -> 39600000 | X142: =S142*($X$202+1) -> 181500 | Y142: 22 | Z142: =X142*Y142*12 -> 47916000
A143: Salaries -Expatriates Teachers | D143: 350000 | E143: 4 | F143: =D143*E143*12 -> 16800000 | I143: 350000 | J143: 6 | K143: =I143*J143*12 -> 25200000 | N143: 385000 | O143: 6 | P143: =N143*O143*12 -> 27720000 | S143: 385000 | T143: 7 | U143: =S143*T143*12 -> 32340000 | X143: 423500 | Y143: 7 | Z143: =X143*Y143*12 -> 35574000
A144: Salaries -Principal | D144: 500000 | E144: 1 | F144: 6000000 | I144: 500000 | J144: 1 | K144: 6000000 | N144: 550000 | O144: 1 | P144: 6600000 | S144: 550000 | T144: 1 | U144: 6600000 | X144: 605000 | Y144: 1 | Z144: 7260000
A145: Salaries -Deputy Principal | D145: 400000 | E145: 1 | F145: 4800000 | I145: 400000 | J145: 1 | K145: 4800000 | N145: 440000 | O145: 1 | P145: 5280000 | S145: 440000 | T145: 1 | U145: 5280000 | X145: 484000 | Y145: 1 | Z145: 5808000
A146: Section Head - Nursery | D146: 300000 | E146: 1 | F146: 3600000 | I146: 300000 | J146: 1 | K146: 3600000 | N146: 330000 | O146: 1 | P146: 3960000 | S146: 330000 | T146: 1 | U146: 3960000 | X146: 363000 | Y146: 1 | Z146: 4356000
A147: Section Head - Primary | D147: 300000 | E147: 1 | F147: 3600000 | I147: 300000 | J147: 1 | K147: 3600000 | N147: 330000 | O147: 1 | P147: 3960000 | S147: 330000 | T147: 1 | U147: 3960000 | X147: 363000 | Y147: 1 | Z147: 4356000
A148: Section Head - High | D148: 300000 | E148: 1 | F148: 3600000 | I148: 300000 | J148: 1 | K148: 3600000 | N148: 330000 | O148: 1 | P148: 3960000 | S148: 330000 | T148: 1 | U148: 3960000 | X148: 363000 | Y148: 1 | Z148: 4356000
A149: Salary -Support Stuff | D149: 30000 | E149: 10 | F149: 3600000 | I149: 30000 | J149: 15 | K149: 5400000 | N149: 33000 | O149: 20 | P149: 7920000 | S149: 33000 | T149: 20 | U149: 7920000 | X149: 36300 | Y149: 20 | Z149: 8712000
A150: - Support Stuff | D150: 60000 | E150: 5 | F150: 3600000 | I150: 60000 | J150: 8 | K150: 5760000 | N150: 66000 | O150: 8 | P150: 6336000 | S150: 66000 | T150: 9 | U150: 7128000 | X150: 72600 | Y150: 9 | Z150: 7840800
A151: Cleaning Services | D151: 200000 | F151: =D151*12 -> 2400000 | I151: 300000 | K151: =I151*12 -> 3600000 | P151: =N151*12 -> 0 | U151: =S151*12 -> 0 | Z151: =X151*12 -> 0
A152: Security Services | D152: 100000 | F152: =D152*12 -> 1200000 | I152: 100000 | K152: =I152*12 -> 1200000 | N152: 100000 | P152: =N152*12 -> 1200000 | S152: 100000 | U152: =S152*12 -> 1200000 | X152: 100000 | Z152: =X152*12 -> 1200000
F153: =SUM(F142:F152) -> 74400000 | K153: =SUM(K142:K152) -> 91560000 | P153: =SUM(P142:P152) -> 102576000 | U153: =SUM(U142:U152) -> 111948000 | Z153: =SUM(Z142:Z152) -> 127378800
A154: Benefits - Health | D154: =SUM(D142:D152)*0.0145 -> 39005 | F154: =D154*12 -> 468060 | I154: =SUM($I$204:$I$214)*0.0145 -> 40455 | K154: =I154*12 -> 485460 | N154: =SUM(N142:N152)*0.0145 -> 39570.5 | P154: =N154*12 -> 474846 | S154: =SUM(S142:S152)*0.0145 -> 39570.5 | U154: =S154*12 -> 474846 | X154: =SUM(X142:X152)*0.0145 -> 43382.55 | Z154: =X154*12 -> 520590.6
A155: ="-House" -> -House | D155: =SUM(D142:D152)*0.0105 -> 28245 | F155: =D155*12 -> 338940 | I155: =SUM($I$204:$I$214)*0.0105 -> 29295 | K155: =I155*12 -> 351540 | N155: =SUM(N142:N152)*0.0105 -> 28654.5 | P155: =N155*12 -> 343854 | S155: =SUM(S142:S152)*0.0105 -> 28654.5 | U155: =S155*12 -> 343854 | X155: =SUM(X142:X152)*0.0105 -> 31414.95 | Z155: =X155*12 -> 376979.4
A156: ="-Transport" -> -Transport | D156: =SUM(D142:D152)*0.0175 -> 47075 | F156: =D156*12 -> 564900 | I156: =SUM($I$204:$I$214)*0.0175 -> 48825 | K156: =I156*12 -> 585900 | N156: =SUM(N142:N152)*0.0175 -> 47757.5 | P156: =N156*12 -> 573090 | S156: =SUM(S142:S152)*0.0175 -> 47757.5 | U156: =S156*12 -> 573090 | X156: =SUM(X142:X152)*0.0175 -> 52358.25 | Z156: =X156*12 -> 628299
A157: Accountant | D157: 80000 | E157: 1 | F157: =D157*12*E157 -> 960000 | I157: 80000 | J157: 1 | K157: =I157*12*J157 -> 960000 | N157: 165000 | O157: 1 | P157: =N157*12*O157 -> 1980000 | S157: 165000 | T157: 1 | U157: =S157*12*T157 -> 1980000 | X157: 181500 | Y157: 1 | Z157: =X157*12*Y157 -> 2178000
A158: Bursar & Clerk | D158: 60000 | E158: 1 | F158: =D158*12*E158 -> 720000 | I158: 60000 | J158: 1 | K158: =I158*12*J158 -> 720000 | N158: 77000 | O158: 1 | P158: =N158*12*O158 -> 924000 | S158: 77000 | T158: 1 | U158: =S158*12*T158 -> 924000 | X158: 84700 | Y158: 1 | Z158: =X158*12*Y158 -> 1016400
A159: Staff Development | D159: 30000 | E159: 10 | F159: 3600000 | I159: 6000 | J159: 10 | K159: 720000 | P159: 0 | U159: 0 | Z159: 0
F160: =SUM(F154:F159)+F153 -> 81051900 | K160: =SUM(K154:K159)+K153 -> 95382900 | P160: =SUM(P154:P159)+P153 -> 106871790 | U160: =SUM(U154:U159)+U153 -> 116243790 | Z160: =SUM(Z154:Z159)+Z153 -> 132099069
A162: Utilities
A163: Laboratory consumables | F163: 2000000 | K163: 2000000 | P163: 2000000 | U163: 2000000 | Z163: 2000000
A164: Toiletries | D164: 60000 | E164: 12 | F164: =E164*D164 -> 720000 | I164: 75000 | J164: 12 | K164: =J164*I164 -> 900000 | N164: 93750 | O164: 12 | P164: =O164*N164 -> 1125000 | S164: 117188 | T164: 12 | U164: =T164*S164 -> 1406256 | X164: 146484 | Y164: 12 | Z164: =Y164*X164 -> 1757808
A165: Subscription | F165: 1000000 | K165: 1000000 | P165: 1000000 | U165: 1000000 | Z165: 1000000
A166: Internet | D166: 60000 | E166: 12 | F166: =E166*D166 -> 720000 | I166: 100000 | J166: 12 | K166: =J166*I166 -> 1200000 | N166: 140625 | O166: 12 | P166: =O166*N166 -> 1687500 | S166: 156250 | T166: 12 | U166: =T166*S166 -> 1875000 | X166: 195313 | Y166: 12 | Z166: =Y166*X166 -> 2343756
A167: Telephone & Postage | D167: 50000 | E167: 12 | F167: 600000 | I167: 75000 | J167: 12 | K167: 900000 | N167: 93750 | O167: 12 | P167: 1125000 | S167: 117188 | T167: 12 | U167: 1406256 | X167: 146484 | Y167: 12 | Z167: 1757808
A168: Computer Exp | F168: 200000 | K168: 200000 | P168: 200000 | U168: 200000 | Z168: 200000
A169: Electricity & Water | D169: 100000 | E169: 12 | F169: =E169*D169 -> 1200000 | I169: 100000 | J169: 12 | K169: =J169*I169 -> 1200000 | N169: 100000 | O169: 12 | P169: =O169*N169 -> 1200000 | S169: 100000 | T169: 12 | U169: =T169*S169 -> 1200000 | X169: 100000 | Y169: 12 | Z169: =Y169*X169 -> 1200000
A170: Staff Food | D170: 80000 | E170: 12 | F170: 960000 | I170: 87500 | J170: 12 | K170: 1050000 | N170: 109375 | O170: 12 | P170: 1312500 | S170: 136719 | T170: 12 | U170: 1640628 | X170: 170898 | Y170: 12 | Z170: 2050776
A171: Student Meals and Snack | D171: 250000 | E171: 12 | F171: =E171*D171 -> 3000000 | I171: 500000 | J171: 12 | K171: =J171*I171 -> 6000000 | N171: 510000 | O171: 12 | P171: =O171*N171 -> 6120000 | S171: 520000 | T171: 12 | U171: =T171*S171 -> 6240000 | X171: 540000 | Y171: 12 | Z171: =Y171*X171 -> 6480000
A172: Miscellenous | D172: 62500 | E172: 12 | F172: =E172*D172 -> 750000 | I172: 125000 | J172: 12 | K172: =J172*I172 -> 1500000 | P172: =O172*N172 -> 0 | S172: 193313 | T172: 12 | U172: =T172*S172 -> 2319756 | X172: 202141 | Y172: 12 | Z172: =Y172*X172 -> 2425692
F173: =SUM(F163:F172) -> 11150000 | K173: =SUM(K163:K172) -> 15950000 | P173: =SUM(P163:P172) -> 15770000 | U173: =SUM(U163:U172) -> 19287896 | Z173: =SUM(Z163:Z172) -> 21215840
A175: Supplies &Legal Exp
A176: Legal Fee | F176: 200000 | K176: 200000 | P176: 200000 | U176: 200000 | Z176: 200000
A177: Supplies-Instructional | I177: 100000 | J177: 12 | K177: =J177*I177 -> 1200000 | N177: 80000 | O177: 12 | P177: =O177*N177 -> 960000 | S177: 80000 | T177: 12 | U177: =T177*S177 -> 960000 | X177: 70000 | Y177: 12 | Z177: =Y177*X177 -> 840000
A178: Supplies-Administrative | I178: 100000 | J178: 12 | K178: 1200000 | N178: 90000 | O178: 12 | P178: 1080000 | S178: 90000 | T178: 12 | U178: 1080000 | X178: 60000 | Y178: 12 | Z178: 720000
A179: Supplies-General | I179: 100000 | J179: 12 | K179: 1200000 | N179: 90000 | O179: 12 | P179: 1080000 | S179: 90000 | T179: 12 | U179: 1080000 | X179: 62000 | Y179: 12 | Z179: 744000
A180: Printing & Advertising | D180: 100000 | E180: 12 | F180: =D180*E180 -> 1200000 | I180: 100000 | J180: 12 | K180: 1200000 | N180: 100000 | O180: 12 | P180: 1200000 | S180: 100000 | T180: 12 | U180: 1200000 | X180: 100000 | Y180: 12 | Z180: 1200000
A181: Licences & Service charge | F181: 200000 | K181: 200000 | P181: 200000 | U181: 200000 | Z181: 200000
A182: Consultancy fees | F182: 200000 | K182: 200000 | P182: 200000 | U182: 200000 | Z182: 200000
A183: Maintenance and Repair | I183: 200000 | J183: 12 | K183: =J183*I183 -> 2400000 | N183: 100000 | O183: 12 | P183: =O183*N183 -> 1200000 | S183: 120000 | T183: 12 | U183: =T183*S183 -> 1440000 | X183: 100000 | Y183: 12 | Z183: =Y183*X183 -> 1200000
A184: Insurance | F184: 100000 | K184: 100000 | P184: 100000 | U184: 100000 | Z184: 100000
F185: =SUM(F176:F184) -> 1900000 | K185: =SUM(K176:K184) -> 7900000 | P185: =SUM(P176:P184) -> 6220000 | U185: =SUM(U176:U184) -> 6460000 | Z185: =SUM(Z176:Z184) -> 5404000
A186: Finance Cost
A187: Start Up Loan(Long Term) | F187: =F125 -> 53040000 | K187: =K125 -> 50671414.11 | P187: 47900168.62 | U187: 44657811.4 | Z187: 40864253.45
A188: Short Term Loan
F189: =SUM(F187:F188) -> 53040000 | K189: =SUM(K187:K188) -> 50671414.11 | P189: =SUM(P187:P188) -> 47900168.62 | U189: =SUM(U187:U188) -> 44657811.4 | Z189: =SUM(Z187:Z188) -> 40864253.45
A191: Caution Money Refund | D191: 70000 | E191: 5 | F191: =D191*E191 -> 350000 | I191: 70000 | J191: 8 | K191: =I191*J191 -> 560000 | N191: 70000 | O191: 11 | P191: =N191*O191 -> 770000 | S191: 70000 | T191: 14 | U191: =S191*T191 -> 980000 | X191: 70000 | Y191: 17 | Z191: =X191*Y191 -> 1190000
A193: Income Statement(Live Case)
A194: Tution Fee | C194: =IFERROR(CHOOSE($B$4,C8,C70,C132),"") -> 5831250 | D194: 17746500 | E194: 40254000 | F194: 63831750 | H194: =IFERROR(CHOOSE($B$4,H8,H70,H132),"") -> 18805781.25 | I194: 57232462.5 | J194: 129819150 | K194: 205857393.8 | M194: =IFERROR(CHOOSE($B$4,M8,M70,M132),"") -> 33693691.41 | N194: 102541495.3 | O194: 232592643.8 | P194: 368827830.5 | R194: =IFERROR(CHOOSE($B$4,R8,R70,R132),"") -> 50709005.57 | S194: 154324950.4 | T194: 350051928.8 | U194: 555085884.9 | W194: =IFERROR(CHOOSE($B$4,W8,W70,W132),"") -> 70087089.84 | X194: 213299127.9 | Y194: 483821773.1 | Z194: 767207990.9
A195: Registration Fee | C195: 1000000 | D195: 1500000 | E195: 1750000 | F195: 4250000 | H195: 3000000 | I195: 4500000 | J195: 5250000 | K195: 12750000 | M195: 5000000 | N195: 7500000 | O195: 8750000 | P195: 21250000 | R195: 7000000 | S195: 10500000 | T195: 12250000 | U195: 29750000 | W195: 9000000 | X195: 13500000 | Y195: 15750000 | Z195: 38250000
A196: Caution Fee-Refundable | C196: 1400000 | D196: 2100000 | E196: 2450000 | F196: 5950000 | H196: 4200000 | I196: 6300000 | J196: 7350000 | K196: 17850000 | M196: 7000000 | N196: 10500000 | O196: 12250000 | P196: 29750000 | R196: 9800000 | S196: 14700000 | T196: 17150000 | U196: 41650000 | W196: 12600000 | X196: 18900000 | Y196: 22050000 | Z196: 53550000
A197: Capital Levy | C197: 3000000 | D197: 4500000 | E197: 5250000 | F197: 12750000 | H197: 9000000 | I197: 13500000 | J197: 15750000 | K197: 38250000 | M197: 15000000 | N197: 22500000 | O197: 26250000 | P197: 63750000 | R197: 21000000 | S197: 31500000 | T197: 36750000 | U197: 89250000 | W197: 27000000 | X197: 40500000 | Y197: 47250000 | Z197: 114750000
A198: Transport Fee | C198: 2520000 | D198: 4185000 | E198: 5355000 | F198: 12060000 | H198: 7560000 | I198: 12555000 | J198: 16065000 | K198: 36180000 | M198: 12600000 | N198: 20925000 | O198: 26775000 | P198: 60300000 | R198: 17640000 | S198: 29295000 | T198: 37485000 | U198: 84420000 | W198: 22680000 | X198: 37665000 | Y198: 48195000 | Z198: 108540000
A199: Lunch & Snacks Fee | C199: 1938000 | D199: 3343500 | E199: 4226250 | F199: 9507750 | H199: 5814000 | I199: 10030500 | J199: 12678750 | K199: 28523250 | M199: 9690000 | N199: 16717500 | O199: 21131250 | P199: 47538750 | R199: 13566000 | S199: 23404500 | T199: 29583750 | U199: 66554250 | W199: 17442000 | X199: 30091500 | Y199: 38036250 | Z199: 85569750
A200: Activity Fee | C200: 810000 | D200: 2052000 | E200: 3053250 | F200: 5915250 | H200: 2430000 | I200: 6156000 | J200: 9159750 | K200: 17745750 | M200: 4050000 | N200: 10260000 | O200: 15266250 | P200: 29576250 | R200: 5670000 | S200: 14364000 | T200: 21372750 | U200: 41406750 | W200: 7290000 | X200: 18468000 | Y200: 27479250 | Z200: 53237250
N202: 0.1 | S202: 0.1 | X202: 0.1
A203: Salaries & Benefits | D203: Monthly | E203: Number | F203: Yearly | I203: Monthly | J203: Number | K203: Yearly | N203: Monthly | O203: Number | P203: Yearly | S203: Monthly | T203: Number | U203: Yearly | X203: Monthly | Y203: Number | Z203: Yearly
A204: Salaries - Local Teachers | D204: =IFERROR(CHOOSE($B$4,D18,D80,D142),"") -> 150000 | E204: =IFERROR(CHOOSE($B$4,E18,E80,E142),"") -> 14 | F204: =D204*E204*12 -> 25200000 | I204: =IFERROR(CHOOSE($B$4,I18,I80,I142),"") -> 150000 | J204: =IFERROR(CHOOSE($B$4,J18,J80,J142),"") -> 25 | K204: =I204*J204*12 -> 45000000 | N204: =IFERROR(CHOOSE($B$4,N18,N80,N142),"") -> 165000 | O204: =IFERROR(CHOOSE($B$4,O18,O80,O142),"") -> 34 | P204: =N204*O204*12 -> 67320000 | S204: =IFERROR(CHOOSE($B$4,S18,S80,S142),"") -> 165000 | T204: =IFERROR(CHOOSE($B$4,T18,T80,T142),"") -> 43 | U204: =S204*T204*12 -> 85140000 | X204: =IFERROR(CHOOSE($B$4,X18,X80,X142),"") -> 181500 | Y204: =IFERROR(CHOOSE($B$4,Y18,Y80,Y142),"") -> 52 | Z204: =X204*Y204*12 -> 113256000
A205: Salaries -Expatriates Teachers | D205: =IFERROR(CHOOSE($B$4,D19,D81,D143),"") -> 350000 | E205: 4 | F205: =D205*E205*12 -> 16800000 | I205: =IFERROR(CHOOSE($B$4,I19,I81,I143),"") -> 350000 | J205: 10 | K205: =I205*J205*12 -> 42000000 | N205: =IFERROR(CHOOSE($B$4,N19,N81,N143),"") -> 385000 | O205: 16 | P205: =N205*O205*12 -> 73920000 | S205: =IFERROR(CHOOSE($B$4,S19,S81,S143),"") -> 385000 | T205: 22 | U205: =S205*T205*12 -> 101640000 | X205: =IFERROR(CHOOSE($B$4,X19,X81,X143),"") -> 423500 | Y205: 28 | Z205: =X205*Y205*12 -> 142296000
A206: Salaries -Principal | D206: 500000 | E206: 1 | F206: 6000000 | I206: 500000 | J206: 1 | K206: 6000000 | N206: 550000 | O206: 1 | P206: 6600000 | S206: 550000 | T206: 1 | U206: 6600000 | X206: =IFERROR(CHOOSE($B$4,X20,X82,X144),"") -> 605000 | Y206: 1 | Z206: 7260000
A207: Salaries -Deputy Principal | D207: 400000 | E207: 1 | F207: 4800000 | I207: 400000 | J207: 1 | K207: 4800000 | N207: 440000 | O207: 1 | P207: 5280000 | S207: 440000 | T207: 1 | U207: 5280000 | X207: =IFERROR(CHOOSE($B$4,X21,X83,X145),"") -> 484000 | Y207: 1 | Z207: 5808000
A208: Section Head - Nursery | D208: 300000 | E208: 1 | F208: 3600000 | I208: 300000 | J208: 1 | K208: 3600000 | N208: 330000 | O208: 1 | P208: 3960000 | S208: 330000 | T208: 1 | U208: 3960000 | X208: =IFERROR(CHOOSE($B$4,X22,X84,X146),"") -> 363000 | Y208: 1 | Z208: 4356000
A209: Section Head - Primary | D209: 300000 | E209: 1 | F209: 3600000 | I209: 300000 | J209: 1 | K209: 3600000 | N209: 330000 | O209: 1 | P209: 3960000 | S209: 330000 | T209: 1 | U209: 3960000 | X209: =IFERROR(CHOOSE($B$4,X23,X85,X147),"") -> 363000 | Y209: 1 | Z209: 4356000
A210: Section Head - High | D210: 300000 | E210: 1 | F210: 3600000 | I210: 300000 | J210: 1 | K210: 3600000 | N210: 330000 | O210: 1 | P210: 3960000 | S210: 330000 | T210: 1 | U210: 3960000 | X210: =IFERROR(CHOOSE($B$4,X24,X86,X148),"") -> 363000 | Y210: 1 | Z210: 4356000
A211: Salary -Support Stuff | D211: 30000 | E211: 10 | F211: 3600000 | I211: 30000 | J211: 18 | K211: 6480000 | N211: 33000 | O211: 20 | P211: 7920000 | S211: 33000 | T211: 22 | U211: 8712000 | X211: =IFERROR(CHOOSE($B$4,X25,X87,X149),"") -> 36300 | Y211: 24 | Z211: 10454400
A212: - Support Stuff | D212: 60000 | E212: 5 | F212: 3600000 | I212: 60000 | J212: 8 | K212: 5760000 | N212: 66000 | O212: 8 | P212: 6336000 | S212: 66000 | T212: 11 | U212: 8712000 | X212: =IFERROR(CHOOSE($B$4,X26,X88,X150),"") -> 72600 | Y212: 11 | Z212: 9583200
A213: Cleaning Services | D213: 200000 | E213: 0 | F213: =D213*12 -> 2400000 | I213: 300000 | J213: 0 | K213: =I213*12 -> 3600000 | N213: 0 | O213: 0 | P213: =N213*12 -> 0 | S213: 0 | T213: 0 | U213: =S213*12 -> 0 | X213: =IFERROR(CHOOSE($B$4,X27,X89,X151),"") -> 0 | Y213: 0 | Z213: =X213*12 -> 0
A214: Security Services | D214: 100000 | E214: 0 | F214: =D214*12 -> 1200000 | I214: 100000 | J214: 0 | K214: =I214*12 -> 1200000 | N214: 100000 | O214: 0 | P214: =N214*12 -> 1200000 | S214: 100000 | T214: 0 | U214: =S214*12 -> 1200000 | X214: =IFERROR(CHOOSE($B$4,X28,X90,X152),"") -> 100000 | Y214: 0 | Z214: =X214*12 -> 1200000
D215: 0 | E215: 0 | F215: =SUM(F204:F214) -> 74400000 | I215: 0 | J215: 0 | K215: =SUM(K204:K214) -> 125640000 | N215: 0 | O215: 0 | P215: =SUM(P204:P214) -> 180456000 | S215: 0 | T215: 0 | U215: =SUM(U204:U214) -> 229164000 | X215: =IFERROR(CHOOSE($B$4,X29,X91,X153),"") -> 0 | Y215: 0 | Z215: =SUM(Z204:Z214) -> 302925600
A216: Benefits - Health | D216: 39005 | E216: 0 | F216: =D216*12 -> 468060 | I216: 40455 | J216: 0 | K216: =I216*12 -> 485460 | N216: 39570.5 | O216: 0 | P216: =N216*12 -> 474846 | S216: 39570.5 | T216: 0 | U216: =S216*12 -> 474846 | X216: =IFERROR(CHOOSE($B$4,X30,X92,X154),"") -> 43382.55 | Y216: 0 | Z216: =X216*12 -> 520590.6
A217: ="-House" -> -House | D217: 28245 | E217: 0 | F217: =D217*12 -> 338940 | I217: 29295 | J217: 0 | K217: =I217*12 -> 351540 | N217: 28654.5 | O217: 0 | P217: =N217*12 -> 343854 | S217: 28654.5 | T217: 0 | U217: =S217*12 -> 343854 | X217: =IFERROR(CHOOSE($B$4,X31,X93,X155),"") -> 31414.95 | Y217: 0 | Z217: =X217*12 -> 376979.4
... 213 more rows
